Cogmind - Beta 16.1 @@@ ROGUE MODE // 2026.03.22 @ 14:14:28 Player: McSaucyNugget Result: Destroyed Tau Ceti IV! Performance ------------- Evolutions (9) 4500 Regions Visited (26) 5200 Robots Destroyed (416) 2080 Value Destroyed (24378) 24378 Prototype IDs (376) 7520 Alien Tech Used (8) 1600 Bonus (54980) 54980 TOTAL SCORE: 100258 Bonus ------- High Alert Combat Kills 6709 Follower Combat Kills 3371 Hunted by Unchained 500 Forged Quantum Companion 2000 Registered with UFD 300 Met Optimus in HQ 500 Met Warlord at Base 500 MAIN.C Attacked Warlord 500 Built Enhanced Grunts 300 Met R17 at Cetus 500 Found Hidden Lab 3000 Used Core Reset Matrix 3000 Met R17 at Research 2000 Destroyed MAIN.C Guards 500 Met MAIN.C 5000 Destroyed MAIN.C Shell 5000 Destroyed MAIN.C 10000 Met Architect 300 Started Test 138-B 500 Started Test 138-C 8000 Destroyed A8 300 Destroyed A6 400 Destroyed A5 500 Destroyed A2 1000 Win 3000 Friendly Fire -2700 Cogmind --------- Core Integrity 982/1600 Matter 290/300 Energy 790/1640 System Corruption 3% Temperature Cool (0) Movement Walking (91) Location Subspace Parts ------- > --- POWER (3) -------- Hybrid Graviton Reactor Concept Zero-point Core Concept Zero-point Core > --- PROPULSION (6) --- Thunder Leg Experimental Biometal Leg Experimental Biometal Leg Experimental Biometal Leg Concept Biometal Exoskeleton > --- UTILITY (14) ----- Concept Thermoelectric Network Concept Antigrav Storage Unit Concept Weapon Articulator Experimental Core Analyzer Experimental Core Analyzer Improved Armor Integrity Analyzer Femtoactuators Advanced Phase Shifter Improved Utility Shielding Centrium Linked Plating Heavy Regenerative Plating Advanced Force Field Concept Impact Drone Bay (2/6) > --- WEAPON (2) ------- Superquantum Companion > --- INVENTORY (25) --- Zero-point Reactor Zero-point Reactor High-density Centrium Leg High-density Centrium Leg High-density Centrium Leg High-density Centrium Leg High-density Centrium Leg Experimental Energy Well (600) Concept Chromion Battery (800) Concept NT7 Matterbank (750) Experimental Weapon Cycler Experimental Weapon Cycler Femtoactuators Improved Reaction Control System Advanced Reaction Control System Graphene Brace Improved Force Field Compact HERF Cannon Warp Cannon Concept Plasma Driver Concept Plasma Driver Perforator Peak State ------------ > --- POWER ------------ Hybrid Graviton Reactor Concept Zero-point Core Concept Zero-point Core > --- PROPULSION ------- Thunder Leg Experimental Biometal Leg Concept Biometal Exoskeleton Concept Biometal Exoskeleton > --- UTILITY ---------- Desublimator Concept Thermoelectric Network Concept Antigrav Storage Unit Concept Weapon Articulator Experimental Core Analyzer Experimental Core Analyzer Improved Armor Integrity Analyzer Femtoactuators Advanced Reaction Control System Centrium Linked Plating Heavy Regenerative Plating Advanced Force Field Concept Impact Drone Bay > --- WEAPON ----------- Concept Plasma Driver Superquantum Companion > --- INVENTORY -------- Zero-point Reactor Zero-point Reactor Thunder Leg High-density Centrium Leg High-density Centrium Leg High-density Centrium Leg High-density Centrium Leg High-density Centrium Leg Experimental Energy Well Concept Chromion Battery Concept NT7 Matterbank Experimental Weapon Cycler Femtoactuators Improved Reaction Control System Advanced Reaction Control System Improved Utility Shielding Graphene Brace Improved Force Field Concept Impact Drone Bay Compact HERF Cannon Warp Cannon Concept Plasma Driver Hypervelocity Multirail Perforator [Rating: 293] Favorites ----------- Power Concept Zero-point Core Engine Ion Engine Power Core Concept Zero-point Core Reactor Hybrid Graviton Reactor Propulsion Centrium Heavy Treads Treads Centrium Heavy Treads Leg Improved Thunder Leg Wheel Armored Huge Wheel Hover Unit Combat Linear Gravjet Flight Unit Cooled Field Propulsion Drive Utility Huge Storage Unit Device Concept Weapon Articulator Storage Huge Storage Unit Processor Advanced Melee Analysis Suite Hackware Deep Network Scanner Protection Heavy Regenerative Plating Weapon Companion Sword Energy Gun Subdweller Laser Energy Cannon Cooled Plasma Cannon Ballistic Gun Barrage Gun Ballistic Cannon Battle Cannon Launcher Heavy Shock Bomb Launcher Special Weapon CPS Tube Impact Weapon Powered Hammer Slashing Weapon Companion Sword Piercing Weapon Plasma Lance Build | -11 -10 -10 -8 -8 -6 -6 -6 -6 -6 -6 -5 -5 -5 -5 -4 -4 -4 -4 -3 -3 -2 -2 -2 -1 -1 -1 ------- Run | Yrd Mat Sub Rec Scr Fac Was Fac Ext Cet Arc Fac Upp Upp War Pro Fac Arm Lab Res Qua Res Tes Frg Acc Com Ac0 Slots Evolved 18 | . . . . . 8 . . . . . 2 . . . . 2 . . 2 . 2 . . 2 . . Power 2 | . . . . . . . . . . . 1 . . . . . . . . . 1 . . . . . Propulsion 4 | . . . . . 2 . . . . . . . . . . 2 . . . . . . . . . . Utility 12 | . . . . . 6 . . . . . 1 . . . . . . . 2 . 1 . . 2 . . Weapon . | . . . . . . . . . . . . . . . . . . . . . . . . . . . Parts Attached 291 | 6 3 10 5 3 8 5 6 18 14 2 14 2 3 14 1 13 10 1 23 5 13 22 46 6 31 7 Power 39 | 1 . . 1 1 . 1 . 3 1 . 4 . . 1 . 3 2 . 6 . 2 3 8 . 2 . Engine 2 | 1 . . . . . . . 1 . . . . . . . . . . . . . . . . . . Core 12 | . . . 1 1 . . . 1 . . 3 . . . . . 2 . 1 . . . 1 . 2 . Reactor 25 | . . . . . . 1 . 1 1 . 1 . . 1 . 3 . . 5 . 2 3 7 . . . Propulsion 75 | 2 . 5 3 1 1 2 . 5 2 1 . . . 1 . 5 5 . 10 . 4 7 10 1 8 2 Treads 17 | 2 . 1 3 . 1 1 . 5 2 . . . . . . . . . 2 . . . . . . . Leg 40 | . . . . . . . . . . 1 . . . . . . . . 7 . 4 7 10 1 8 2 Wheel 6 | . . 4 . 1 . . . . . . . . . . . . . . 1 . . . . . . . Hover 11 | . . . . . . . . . . . . . . 1 . 5 5 . . . . . . . . . Flight 1 | . . . . . . 1 . . . . . . . . . . . . . . . . . . . . Utility 143 | 1 2 1 1 . 7 2 4 9 7 1 9 1 3 10 1 5 3 1 7 2 6 11 22 5 17 5 Device 74 | . . . . . 3 1 1 3 1 . 3 . 1 5 1 2 1 . 4 2 5 8 17 3 10 3 Storage 11 | 1 1 . . . . 1 . . 1 . 1 . . 1 . . . . 1 . . . 3 . 1 . Processor 24 | . . . . . 3 . 1 1 . . 2 1 2 4 . 1 . . 1 . . 1 2 1 4 . Hackware 13 | . . . . . . . 2 . . . 3 . . . . 2 1 . 1 . 1 2 . 1 . . Protection 21 | . 1 1 1 . 1 . . 5 5 1 . . . . . . 1 1 . . . . . . 2 2 Artifact . | . . . . . . . . . . . . . . . . . . . . . . . . . . . Weapon 34 | 2 1 4 . 1 . . 2 1 4 . 1 1 . 2 . . . . . 3 1 1 6 . 4 . Energy Gun 3 | . . 1 . . . . . . . . . . . 1 . . . . . . . . 1 . . . Energy Cannon 11 | . . 1 . . . . 1 . . . . . . 1 . . . . . 2 1 1 3 . 1 . Ballistic Gun 6 | 2 1 1 . . . . . . 1 . . . . . . . . . . . . . 1 . . . Ballistic Cannon 4 | . . 1 . . . . . . . . . . . . . . . . . . . . 1 . 2 . Launcher 4 | . . . . . . . 1 . 1 . 1 1 . . . . . . . . . . . . . . Special Weapon 2 | . . . . . . . . . 2 . . . . . . . . . . . . . . . . . Impact Weapon 1 | . . . . . . . . 1 . . . . . . . . . . . . . . . . . . Slashing Weapon 2 | . . . . 1 . . . . . . . . . . . . . . . 1 . . . . . . Piercing Weapon 1 | . . . . . . . . . . . . . . . . . . . . . . . . . 1 . Special Melee Weapon . | . . . . . . . . . . . . . . . . . . . . . . . . . . . Unidentified Prototypes 30 | . . . . 1 . 1 1 . 5 1 2 . . 13 . . . 2 . 2 . . . . . 2 Corrupted Parts 1 | . . . . . . . . . . . . . . . . . . . . . . . 1 . . . System Corruption 4 | . . . . . . . . . . . . . . . . . . . . . . . 4 . . . Parts Lost 56 | . 1 7 . . . 2 . 8 . 1 1 . . . 1 . 9 . 10 . 4 . 4 1 3 4 Power 10 | . . 1 . . . . . 2 . . 1 . . . . . 1 . 2 . . . 2 . 1 . Propulsion 17 | . . 4 . . . . . 1 . . . . . . . . 5 . 4 . 2 . . . . 1 Utility 27 | . . 1 . . . 2 . 5 . 1 . . . . 1 . 3 . 4 . 2 . 2 1 2 3 Weapon 2 | . 1 1 . . . . . . . . . . . . . . . . . . . . . . . . Highest Loss Streak 6 | . 1 3 . . . 2 . 4 . 1 1 . . . 1 . 4 . 6 . 1 . 1 1 2 2 To Critical Strikes 1 | . . . . . . . . . . . . . . . . . . . 1 . . . . . . . Average Backups 19 | . 5 13 19 24 19 9 21 22 22 23 22 23 22 22 22 14 13 11 13 18 18 17 18 22 22 23 Power 1 | . . . . 1 1 1 2 1 1 2 1 1 1 1 1 1 . 1 1 2 1 . 1 2 2 2 Propulsion 4 | . . 3 6 5 4 2 7 8 6 4 5 7 7 5 5 2 1 . 2 4 2 2 2 3 2 4 Utility 8 | . 2 4 5 10 8 3 6 6 8 10 10 10 10 12 13 8 9 6 5 5 6 6 8 11 12 11 Weapon 4 | . 1 5 6 5 4 1 2 4 5 5 4 4 2 2 3 1 1 2 2 3 4 4 4 4 4 5 Tool/Special . | . . . . . . . . . . . . . . . . . . . . . . . . . . . Unused Backups 118 | . . . 1 19 . 6 10 5 9 2 4 . 1 5 . 3 6 1 3 6 7 10 7 . 4 9 Power 14 | . . . . . . 1 2 . 2 1 . . . 1 . 1 1 . . 1 . . 1 . 1 2 Propulsion 54 | . . . . 8 . 1 4 4 5 1 4 . . 3 . . 2 . 1 2 4 7 4 . . 4 Utility 33 | . . . 1 5 . 1 2 1 1 . . . 1 1 . 2 3 . 2 2 2 2 1 . 3 3 Weapon 13 | . . . . 6 . 3 1 . 1 . . . . . . . . 1 . . . 1 . . . . Tool/Special 4 | . . . . . . . 1 . . . . . . . . . . . . 1 1 . 1 . . . Average Slot Usage (%) 85 | . 97 99 98 94 72 38 77 82 80 76 81 82 82 81 76 84 89 85 84 94 93 90 84 76 81 87 Engine 1 | . 14 13 . . . . . 1 1 . . . . . . . . . . . . . . . . . Core 4 | . . . 12 14 6 . . . . . 4 5 5 2 . . 3 5 1 . . . . 4 7 8 Reactor 4 | . . . . . . 3 6 3 4 6 5 5 5 4 5 5 6 5 6 9 12 13 12 8 4 4 Treads 9 | . 28 19 25 22 3 3 6 17 15 13 11 11 11 10 11 . . . 4 . . . . . . . Leg 6 | . . . . . . . . . . . . . . . . . . . 9 28 26 22 16 8 12 16 Wheel 1 | . . 7 1 2 6 3 6 . . . . . . . . . . . . . . . . . . . Hover 1 | . . . . . . . . . . . . . . . . 25 25 26 6 . . . . . . . Device 14 | . . . . . 13 7 20 9 4 5 17 16 12 11 13 8 9 5 12 15 18 18 25 30 29 25 Storage 7 | . 14 14 14 14 6 3 6 6 6 6 5 5 5 5 5 5 5 5 4 4 4 4 4 4 5 4 Processor 7 | . . . . . 16 4 2 6 6 . 4 10 15 20 17 20 21 21 14 14 13 14 5 7 10 12 Hackware 3 | . . . . . . . 11 8 . . 8 5 5 3 . 5 5 5 8 7 6 5 5 5 . . Protection 9 | . 11 14 14 14 11 5 9 18 32 35 12 11 11 8 13 5 4 6 3 4 4 4 4 4 4 9 Energy Cannon 1 | . . 4 2 . . . . . . . . . . 2 . . . . 2 3 3 3 1 . . 1 Ballistic Gun 3 | . 28 10 11 11 . . . . . . . . . . . . . . . . . . 1 . . . Ballistic Cannon 2 | . . 6 14 11 . . . . . . . . . . . . . . . . . . . . . . Slashing Weapon 3 | . . . . 2 6 3 6 6 6 6 5 5 5 5 5 5 5 5 4 4 4 4 3 4 3 4 Peak Build Rating 293 | 6 8 15 22 32 55 55 75 84 116 113 130 122 121 139 144 143 129 134 159 169 186 222 269 288 290 293 Average Rating 131 | 4 7 10 20 25 50 33 66 70 94 110 114 116 115 123 131 135 123 129 145 162 179 197 238 273 273 277 On Entrance 115 | . 6 8 15 22 30 54 55 75 56 108 113 122 116 115 139 133 130 129 132 159 169 182 220 265 281 273 Avg Prop Armor Cover (%) 10 | . . 9 13 . 6 14 12 13 . . . . . . . . 9 . 2 . . . . . . . Naked Turns 112 | . . . . . . 112 . . . . . . . . . . . . . . . . . . . . Heaviest Build 168 | 13 92 99 106 101 111 114 129 140 145 151 158 158 143 168 160 82 66 64 109 130 150 151 156 128 130 144 Greatest Support 178 | 40 40 40 42 42 28 70 28 140 160 160 160 160 160 160 160 86 86 72 149 149 150 176 176 158 178 167 Greatest Overweight (x) 5 | . 2 4 4 3 3 4 4 4 1 . . . . 1 . 1 2 . 5 . 1 1 1 . . 1 Average Overweight (x) . | . 1 3 2 2 3 . 4 . . . . . . . . . . . . . . . . . . . Largest Inventory Capacity 25 | 8 25 25 25 25 25 25 25 25 25 25 25 25 25 25 25 25 15 15 20 20 20 20 25 25 25 25 Average Capacity 23 | 6 19 25 25 25 25 13 25 25 25 25 25 25 25 25 25 15 15 15 15 20 20 20 22 25 25 25 Most Carried 25 | . 10 17 25 25 24 23 25 25 25 25 25 25 25 25 25 24 15 15 17 20 20 20 25 25 25 25 Average Carried 21 | . 5 13 19 24 20 9 23 23 24 24 24 24 24 24 24 14 13 12 14 19 19 19 21 24 24 24 Final Capacity 25 | 8 25 25 25 25 25 25 25 25 25 25 25 25 25 25 25 15 15 15 20 20 20 20 25 25 25 25 Final Carried 25 | . 10 15 25 25 21 22 24 25 25 25 25 25 25 25 24 13 12 15 17 20 18 20 24 24 25 23 Class Distribution -------------------- 29% | Hacker-Mutant 27% | Mutant 20% | Scavenger-Mutant 10% | Scavenger-Assassin 4% | Alien-Mutant 3% | Scavenger-Gladiator Dominant Class ---------------- Mutant | -10/Materials Mutant | -10/Subcaves Mutant | -8/Recycling Mutant | -8/Scraptown Mutant | -6/Factory Mutant | -6/Waste Hacker-Mutant | -6/Factory Scavenger-Mutant | -6/Extension Scavenger-Mutant | -6/Cetus Scavenger-Mutant | -6/Archives Scavenger-Assassin | -5/Factory Scavenger-Assassin | -5/Upper Caves Scavenger-Assassin | -5/Upper Caves Scavenger-Assassin | -5/Warlord Scavenger-Mutant | -4/Proximity Caves Scavenger-Mutant | -4/Factory Scavenger-Mutant | -4/Armory Scavenger-Mutant | -4/Lab Hacker-Mutant | -3/Research Hacker-Mutant | -3/Quarantine Hacker-Mutant | -2/Research Hacker-Mutant | -2/Testing Hacker-Mutant | -2/Protoforge Hacker-Mutant | -1/Access Scavenger-Mutant | -1/Command Scavenger-Mutant | -1/Access_0 Resources | -11 -10 -10 -8 -8 -6 -6 -6 -6 -6 -6 -5 -5 -5 -5 -4 -4 -4 -4 -3 -3 -2 -2 -2 -1 -1 -1 ----------- Run | Yrd Mat Sub Rec Scr Fac Was Fac Ext Cet Arc Fac Upp Upp War Pro Fac Arm Lab Res Qua Res Tes Frg Acc Com Ac0 Matter Collected 11096 | 218 397 200 212 460 16 264 397 395 228 50 386 177 84 276 123 345 323 . 203 309 216 717 4175 184 402 339 Remotely . | . . . . . . . . . . . . . . . . . . . . . . . . . . . Salvage Created 26401 | . 495 397 448 . 16 . 564 1600 359 230 801 410 108 . 474 1231 808 . 1010 1158 1946 1570 7041 2506 2004 1225 Parts 1252 | . 23 25 22 . 2 . 32 51 35 17 45 23 4 . 17 66 42 . 50 69 108 67 319 110 47 78 Haulers Intercepted 8 | . 2 . . . . . 1 . . . . . . . . . . . 2 . 3 . . . . . Recyclers Shooed 1 | . . . 1 . . . . . . . . . . . . . . . . . . . . . . . Parts Field Recycled . | . . . . . . . . . . . . . . . . . . . . . . . . . . . Retrieved Matter . | . . . . . . . . . . . . . . . . . . . . . . . . . . . Parts Self-Destructed 53 | . . 19 . . . . . . . . . 22 5 . 7 . . . . . . . . . . . Prevented 2 | . . . . . . . . . . . . . 2 . . . . . . . . . . . . . Parts Restored 10 | . . . . . . . . . . . . . . . . . . . . . . . 10 . . . Faulty 10 | . . . . . . . . . . . . . . . . . . . . . . . 10 . . . Kills | -11 -10 -10 -8 -8 -6 -6 -6 -6 -6 -6 -5 -5 -5 -5 -4 -4 -4 -4 -3 -3 -2 -2 -2 -1 -1 -1 ------- Run | Yrd Mat Sub Rec Scr Fac Was Fac Ext Cet Arc Fac Upp Upp War Pro Fac Arm Lab Res Qua Res Tes Frg Acc Com Ac0 Combat Hostiles Destroyed 323 | . 6 10 4 . . . 6 19 3 . 11 15 1 . 10 18 11 . 10 13 26 13 92 31 11 13 Melee 162 | . . . . . . . 3 19 . . 5 6 1 . 9 10 11 . 7 8 16 10 24 23 6 4 Guns 45 | . 6 6 1 . . . . . . . . . . . . . . . . . 2 . 22 4 . 4 Cannons 57 | . . 4 3 . . . . . . . . . . . . . . . 3 1 4 . 37 2 2 1 AOE 27 | . . . . . . . 3 . . . 6 9 . . 1 8 . . . . . . . . . . Classes Destroyed 31 | . 4 3 1 . 1 . 4 2 . . 2 . . . 3 . . . 2 . . 1 7 1 . . Worker 18 | . . . . . . . 1 . . . 2 . . . . . . . . 1 4 3 2 4 1 . Builder 9 | . . . . . . . 1 1 . . 1 . . . . . . . . 1 3 1 . 1 . . Tunneler 4 | . . . . . 1 . . . . . . . . . . 2 . . . . . . . 1 . . Hauler 8 | . 2 . . . . . 1 . . . . . . . . . . . 2 . 3 . . . . . Recycler 16 | . 1 . 3 . . . 1 2 . . . . . . . 3 . . 1 1 . . . 2 2 . Mechanic 3 | . . . . . . . . . . . . . . . . . . . . . . . 3 . . . Operator 9 | . . . . . . . . 2 . 4 1 . . . . . . . 1 1 . . . . . . Drone 12 | . . . . . . . . . . . . . . . 2 . . . . . . . 10 . . . Watcher 20 | . 1 . . . . . 2 1 1 . . . . . . 2 2 . 2 1 1 3 . 4 . . Swarmer 68 | . . 3 1 . . . 5 . . . . 14 1 . 3 9 . . 5 . 12 . . 11 4 . Saboteur 1 | . . . . . . . . . . . . . . . . . . . . . . . 1 . . . Grunt 71 | . 6 2 . . . . . 12 . . 4 1 . . . 5 4 . 1 4 . 4 20 8 . . Brawler 7 | . . . . . . . . 1 . . . . . . . 1 . . . . . . 5 . . . Duelist 3 | . . . . . . . . . . . . . . . . . . . . . . . 3 . . . Protector 1 | . . . . . . . . . . . . . . . . . . . . . . . 1 . . . Researcher 1 | . . . . . . . . . . . . . . . . . . . . . . . 1 . . . Sentry 29 | . . . 4 . . . . 6 . . . . . . . 1 1 . . . 1 1 13 1 1 . Specialist 6 | . . . . . . . . . . . 2 . . . . . . . . . 2 . . 2 . . Hunter 13 | . . . . . . . . . . . 3 . . . . . 1 . 1 4 2 . 2 . . . Programmer 53 | . . . . . . . 1 . . . 2 . . . . 2 5 . 1 5 9 6 14 8 . . Heavy 1 | . . . . . . . . . . . . . . . . . . . . . . . . 1 . . Behemoth 1 | . . . . . . . . . . . . . . . . . . . 1 . . . . . . . Cetus Guard 3 | . . . . . . . . . 3 . . . . . . . . . . . . . . . . . M Guard 2 | . . . . . . . . . . . . . . . . . . . . . . . . . 2 . Enhanced Grunt 5 | . . . . . . . . . . 1 . . . . . . . . . . . . . . . 4 Enhanced Sentry 1 | . . . . . . . . . . . . . . . . . . . . . . . . . . 1 Enhanced Hunter 4 | . . . . . . . . . . . . . . . . . . . . . . . . . . 4 Hotshot 9 | . . . . . . . . . . . . . . . . . . . . . . . 9 . . . Decapitator 7 | . . . . . . . . . . . . . . . . . . . . . . . 7 . . . Immortal 5 | . . . . . . . . . . . . . . . . . . . . . . . 5 . . . Combat Programmer 2 | . . . . . . . . . . . . . . . . . . . . . . . . . 2 . Striker 1 | . . . . . . . . . . . . . . . . . . . 1 . . . . . . . Alpha 7 2 | . . . . . . . . . . . . . . . . . . . . . . . 2 . . . Fortress 1 | . . . . . . . . . . . . . . . . . . . . . . 1 . . . . Protovariant L 1 | . . . . . . . . . . . . . . . . . . . . . . 1 . . . . Artisan 1 | . . 1 . . . . . . . . . . . . . . . . . . . . . . . . Subdweller 5 | . . 5 . . . . . . . . . . . . . . . . . . . . . . . . Tinkerer 1 | . . . . . . . . . . . . . . . . . . . . . . . 1 . . . Thug 1 | . . . . . . . . . . . . . . . 1 . . . . . . . . . . . Butcher 3 | . . . . . . . . . . . . . . . 3 . . . . . . . . . . . Martyr 2 | . . . . . . . 2 . . . . . . . . . . . . . . . . . . . Mutant 1 | . . . . . . . . . . . . . . . 1 . . . . . . . . . . . Best Kill Streak 14 | . 2 3 3 . 1 . 6 4 4 2 10 5 1 . 4 6 4 . 4 5 9 6 14 10 6 3 Combat Bots Only 13 | . 2 3 1 . . . 3 4 3 . 8 5 1 . 4 6 3 . 4 3 8 4 13 6 5 3 Max Kills in Single Turn 4 | . 1 1 1 . 1 . 3 1 1 1 2 4 1 . 1 4 1 . 1 1 1 2 3 1 1 2 Gunslinging . | . . . . . . . . . . . . . . . . . . . . . . . . . . . Exploded 4 | . . . . . . . 2 . . . 2 4 . . 1 4 . . . . . . . . . . Melee 2 | . . . . . . . 1 1 . . 1 1 1 . 1 1 1 . 1 1 1 2 2 1 1 1 Uniques/NPCs Destroyed 7 | . . . . . . . . . 1 . . . . . . . . . . . . . . . 2 4 A7 (-6/Cetus) MAIN.C Shell (-1/Command) MAIN.C (-1/Command) A8 (-1/Access_0) A6 (-1/Access_0) A2 (-1/Access_0) A5 (-1/Access_0) Combat | -11 -10 -10 -8 -8 -6 -6 -6 -6 -6 -6 -5 -5 -5 -5 -4 -4 -4 -4 -3 -3 -2 -2 -2 -1 -1 -1 -------- Run | Yrd Mat Sub Rec Scr Fac Was Fac Ext Cet Arc Fac Upp Upp War Pro Fac Arm Lab Res Qua Res Tes Frg Acc Com Ac0 Hostile Shots Fired 2740 | . 41 54 4 . . 4 108 568 32 37 190 73 3 . 50 71 113 . 103 137 179 39 261 139 119 415 Missed 1006 | . 4 11 1 . . 1 36 189 13 6 51 16 2 . 12 26 37 . 31 59 73 12 85 63 31 247 Intercepted 15 | . . . . . . . . . . . . . . . . . . . . . . . . . 15 . Deflected 29 | . . . . . . . . . . . . . . . . . . . 6 1 10 1 8 1 2 . Hits 1734 | . 37 43 3 . . 3 72 379 19 31 139 57 1 . 38 45 76 . 72 78 106 27 176 76 88 168 Melee 56 | . . . . . . 3 . 2 . . . . . . 5 1 . . . . . 7 28 . . 10 Projectile 1678 | . 37 43 3 . . . 72 377 19 31 139 57 1 . 33 44 76 . 72 78 106 20 148 76 88 158 AOE 4 | . . . . . . . 1 . . . . . . . . . 1 . . . . . . . 2 . Critical Strikes 108 | . 2 1 . . . 1 . 5 1 1 2 . . 1 2 6 2 . 3 4 3 3 30 10 15 16 Actively Blocked 65 | . . . . . . . . . . . . . . . . . . . . . 2 1 28 8 15 11 Part Disruptions 8 | . . . . . . . . . . . . . . . 1 . 1 . . . . . 1 . 3 2 Actively Blocked 1 | . . . . . . . . . . . . . . . . . . . . . . . . . . 1 Damage Taken 26610 | . 511 740 76 . . 131 546 3985 449 786 1945 534 25 79 379 971 1686 . 1703 1141 1162 704 3434 801 2255 2567 Core 2996 | . 95 132 . . . 131 110 389 38 56 138 24 8 . 44 140 385 . 172 80 83 77 352 58 60 424 Absorbed by Shields 8853 | . . . . . . . 227 343 96 . 407 343 . 35 302 . . . 72 549 1168 334 1345 730 306 2596 Reduced by Siege Mode 18 | . . . . . . . . . . . 18 . . . . . . . . . . . . . . . Redirected to Shielding 139 | . . . . . . . . . . . . . . . . . . . . . . . . . . 139 Ignored by Resistances 2386 | . . . . . . . . . . . . . . . . . . . . . . . 315 657 1231 183 Regen/Repaired (Parts) 7936 | . . . . . . 39 429 602 12 68 490 198 . 638 53 331 195 59 807 541 417 311 1151 222 855 518 Core Remaining (%) 59 | 100 . . . 9 . . . . . 14 . . . . 78 . . 79 . 80 . . 56 . . 61 Volleys Fired 627 | . 45 44 16 . . . 12 25 17 1 13 3 10 6 1 12 11 . . 59 23 42 163 18 46 60 Largest 2 | . 2 2 2 . . . 1 1 1 1 1 1 1 1 1 1 1 . . 1 1 1 1 1 1 1 Hottest 300 | . 40 113 113 . . . 105 105 43 33 46 43 35 105 46 43 35 . . 113 120 120 300 140 140 140 Shots Fired 718 | . 89 78 30 . . . 12 25 16 1 13 3 10 6 1 12 12 . . 59 25 41 162 18 46 59 Gun 247 | . 89 55 9 . . . . . 9 1 . . . . . . . . . . . . 53 10 5 16 Cannon 442 | . . 23 21 . . . 10 25 . . . . 10 5 . 10 12 . . 59 25 41 109 8 41 43 Launcher 25 | . . . . . . . 2 . 4 . 13 3 . . 1 2 . . . . . . . . . . Special 4 | . . . . . . . . . 3 . . . . 1 . . . . . . . . . . . . Kinetic 288 | . 89 41 25 . . . . . 9 1 . . . . . . . . . . . . 91 10 5 17 Thermal 326 | . . 37 5 . . . 10 25 . . . . 10 5 . 10 12 . . 45 12 35 50 8 41 21 Explosive 7 | . . . . . . . 2 . . . . 3 . . . 2 . . . . . . . . . . Electromagnetic 93 | . . . . . . . . . 4 . 13 . . . 1 . . . . 14 13 6 21 . . 21 Robot Hit Streak 39 | . 11 9 10 . . . . 4 8 4 5 1 . 3 . . 1 . . 5 3 7 39 12 15 7 Robot Miss Streak 9 | . 2 7 1 . . . . 1 2 . 2 1 . . 1 3 . . . 2 1 1 9 1 2 5 Penetration Max 2 | . . . . . . . . . 1 . . . . . . . . . . . . . 2 1 1 1 Secondary Targets 1 | . . 1 . . . . . . . . . . . . . . . . . . . . . . . . Max Gunslinging Chain 1 | . . 1 . . . . . . . . . . . . . . . . . . . . . . . . Autonomous 33 | . . . . . . . . . . . . . . . . . . . 6 2 6 . 3 5 5 6 Shots Hit Robots 1083 | . 60 42 21 . 1 . 23 99 21 16 39 21 5 3 21 48 39 . 32 44 61 39 169 84 101 94 Core Hits 676 | . 25 17 8 . . . 16 38 8 6 31 20 1 1 12 36 21 . 13 16 29 14 226 38 33 67 Critical Kills 80 | . 1 . 1 . . . . . . 1 . . . . . . . . . . . 1 64 4 2 6 Critical Parts Destroyed 87 | . 1 . . . . . . . 1 . . . . . . . . . . . . . 68 4 4 9 Critical Strikes 222 | . 2 . 2 . . . . 2 3 1 2 . . . . 4 2 . . 2 2 3 156 9 11 21 Meltdown 8 | . . . 1 . . . . . . . . . . . . . . . . . . 1 2 . 2 2 Destroy 184 | . 2 . . . . . . . 1 1 . . . . . . . . . . . . 151 9 7 13 Blast 1 | . . . 1 . . . . . . . . . . . . . . . . . . . . . . . Corrupt 1 | . . . . . . . . . . . . . . . . . . . . . . . 1 . . . Melee Attacks 1010 | . . . . . 1 . 32 116 9 16 43 32 5 1 25 58 64 19 46 43 71 54 96 108 105 66 Impact . | . . . . . . . . . . . . . . . . . . . . . . . . . . . Slashing 1010 | . . . . . 1 . 32 116 9 16 43 32 5 1 25 58 64 19 46 43 71 54 96 108 105 66 Piercing . | . . . . . . . . . . . . . . . . . . . . . . . . . . . Sneak Attacks 94 | . . . . . 1 . 6 8 9 6 2 . . . 5 6 1 . 4 2 6 7 18 11 2 . Combat Hostiles 9 | . . . . . . . . . . . . . . . 1 1 1 . . . . 2 3 1 . . Follow-up Attacks 17 | . . . . . . . 1 . . . 1 2 . . 3 1 . . . 1 2 1 3 . . 2 Martial Strikes 24 | . . . . . . . . . . . . . . . . . . . . . . . . 19 5 . Damage Inflicted 64351 | . 615 763 504 . 85 . 1418 4326 983 974 2336 1484 324 48 1038 2893 1704 . 2780 3132 5831 3245 9218 6998 8150 5502 Guns 2522 | . 613 584 142 . . . . . 52 6 . . . . . . . . . . . . 755 132 62 176 Cannons 9603 | . . 179 362 . . . . 128 . . . . . 48 . . 34 . 496 778 862 269 2096 666 2039 1646 Explosions 3112 | . . . . . . . 266 . 348 . 1064 593 . . 60 632 . . . 149 . . . . . . Melee 48821 | . . . . . 85 . 1152 4198 583 968 1270 891 324 . 978 2261 1670 . 2284 2205 4680 2976 6367 6200 6049 3680 Ramming 293 | . 2 . . . . . . . . . 2 . . . . . . . . . 289 . . . . . Kinetic 3290 | . 613 430 420 . . . . . 52 6 . . . . . . . . . . . . 1399 132 62 176 Thermal 4497 | . . 333 84 . . . . 128 . . 137 . . 48 . 47 34 . . 175 45 132 641 233 1633 827 Explosive 1386 | . . . . . . . 266 . . . . 593 . . . 527 . . . . . . . . . . Electromagnetic 3242 | . . . . . . . . . 348 . 927 . . . 60 58 . . . 570 259 137 572 . . 311 Impact . | . . . . . . . . . . . . . . . . . . . . . . . . . . . Slashing 48821 | . . . . . 85 . 1152 4198 583 968 1270 891 324 . 978 2261 1670 . 2284 2205 4680 2976 6367 6200 6049 3680 Piercing . | . . . . . . . . . . . . . . . . . . . . . . . . . . . Phasic 2822 | . . . . . . . . . . . . . . . . . . . 496 182 558 . 239 433 406 508 Highest Corruption 17 | . . . . . . . 1 11 11 11 2 2 2 2 . 2 12 12 3 4 11 11 17 3 5 3 Average Corruption 5 | . . . . . . . 1 8 11 11 1 2 2 2 . 1 7 12 2 3 5 7 5 1 4 2 Corruption Purged 32 | . . . . . . . . . . . . . . . . . . . . . . 10 17 . 5 . Corruption Blocked . | . . . . . . . . . . . . . . . . . . . . . . . . . . . Effects 350 | . . . . . . . 4 67 18 9 . 14 17 . . 3 21 11 . 19 27 44 60 7 27 2 Message Errors 97 | . . . . . . . 1 12 9 4 . 3 6 . . . 7 6 . 6 5 16 9 5 8 . Matter Fused 81 | . . . . . . . 1 19 2 . . 5 5 . . 1 4 . . 5 5 8 19 . 7 . Heat Flow Errors 50 | . . . . . . . 1 10 1 1 . 3 1 . . . 1 1 . 3 4 8 12 2 2 . Energy Discharges 35 | . . . . . . . . 7 2 1 . 3 1 . . . 4 1 . 2 5 4 3 . 2 . Parts Rejected 5 | . . . . . . . . . . . . . . . . 1 . . . 1 2 . 1 . . . Parts Fused 2 | . . . . . . . . . . . . . . . . . . . . . . . 1 . 1 . Data Loss (minor) 37 | . . . . . . . . 11 1 1 . . 2 . . . 2 3 . 1 . 1 8 . 6 1 Data Loss (major) 22 | . . . . . . . 1 6 1 1 . . 2 . . 1 1 . . . 2 3 3 . 1 . Misfires 6 | . . . . . . . . . . . . . . . . . 1 . . . 3 1 1 . . . Alerts 5 | . . . . . . . . . 1 1 . . . . . . . . . 1 . 1 1 . . . Misdirections 3 | . . . . . . . . 2 . . . . . . . . 1 . . . . . . . . . Weapon Failures 7 | . . . . . . . . . 1 . . . . . . . . . . . 1 2 2 . . 1 Overload Shots 5 | . . . . . . . 2 2 . . . . . 1 . . . . . . . . . . . . Overflow Damage 5912 | . . . 11 . 55 . 28 421 19 190 19 188 48 . 55 40 77 . 299 411 733 436 1020 1262 430 170 Projectiles 323 | . . . 11 . . . . . . . . . . . . . . . 4 27 45 4 . 35 169 28 Explosions 84 | . . . . . . . . . . . 3 10 . . 20 33 . . . 18 . . . . . . Melee 5505 | . . . . . 55 . 28 421 19 190 16 178 48 . 35 7 77 . 295 366 688 432 1020 1227 261 142 Knockbacks 25 | . . 1 2 . . . . . . . . . . . . . . . . . 2 . 20 . . . Impact 2 | . . . . . . . . . . . . . . . . . . . . . 2 . . . . . Kinetic 22 | . . 1 2 . . . . . . . . . . . . . . . . . . . 19 . . . Secondary 1 | . . . . . . . . . . . . . . . . . . . . . . . 1 . . . Self-Inflicted Damage 187 | . . . . . . . . . . . . . . . 15 . . . . 114 58 . . . . . Shots 4 | . . . . . . . . . . . . . . . 1 . . . . 2 1 . . . . . Rammed 2 | . 1 . . . . . . . . . 1 . . . . . . . . . . . . . . . Targets Rammed 7 | . 1 . . . . . . . . . 1 . . . . . . . . . 5 . . . . . Kicked 5 | . . . . . . . . . . . . . . . . . . . . . 5 . . . . . Crushed . | . . . . . . . . . . . . . . . . . . . . . . . . . . . Highest Temperature 304 | . 83 24 216 . . . 255 266 248 100 112 167 99 54 4 9 260 170 . 193 304 234 207 249 223 146 Average Temperature 69 | . 19 11 70 . . . 95 90 51 12 46 60 52 32 4 3 99 90 . 82 85 77 70 84 106 41 Received Heat Transfer 3653 | . 330 108 18 . . . 63 1307 36 138 514 24 . 4 72 123 87 . 94 49 12 28 446 92 63 45 Thermoelectric Energy+ 330 | . . . . . . . . . . . . . . . . . . . . . . . . . 330 . Effects 5 | . . . . . . . . . 4 . . . . . . . 1 . . . . . . . . . Energy Bleed 1 | . . . . . . . . . . . . . . . . . 1 . . . . . . . . . Interference 4 | . . . . . . . . . 4 . . . . . . . . . . . . . . . . . Siege Activations 1 | . . . . . . . . . . . 1 . . . . . . . . . . . . . . . Total Turns 13 | . . . . . . . . . . . 13 . . . . . . . . . . . . . . . Longest Duration 13 | . . . . . . . . . . . 13 . . . . . . . . . . . . . . . Martial Activations . | . . . . . . . . . . . . . . . . . . . . . . . . . . . Shielding Activations . | . . . . . . . . . . . . . . . . . . . . . . . . . . . Robots Disrupted 12 | . . . . . . . . 1 . 1 1 . . . 2 . . . . . 2 . 2 2 1 . Combat Hostiles 9 | . . . . . . . . 1 . . 1 . . . 2 . . . . . 2 . 1 1 1 . Robots Corrupted 19 | . . . . . . . . . 3 . . . . . . . . . . 4 4 1 5 . . 2 Combat Hostiles 17 | . . . . . . . . . 3 . . . . . . . . . . 4 2 1 5 . . 2 Parts Fried 38 | . . . . . . . . . . . 5 . . . . . . . . 2 9 2 11 . 2 7 Impact Corruptions 6 | . . . . . . . . . . . . . . . . . . . . . 6 . . . . . Robots Melted 8 | . . . 1 . . . . . . . . . . . . . . . . . . 1 2 . 2 2 Combat Hostiles 8 | . . . 1 . . . . . . . . . . . . . . . . . . 1 2 . 2 2 Parts Melted 23 | . . . . . . . 1 1 . . . . . . 1 . . . . . 1 . 3 . 6 10 Heat Transferred 2930 | . . 399 111 . . . . 200 . . 100 . . 50 . 50 50 . . 211 37 104 500 150 658 310 Parts Sabotaged 3 | . . . . . . . . . . . . . . . . . . . . . . . 3 . . . Parts Stolen . | . . . . . . . . . . . . . . . . . . . . . . . . . . . Parts Stripped 68 | . . . . . . . . . . . . . . . . . . . . . 5 7 27 16 13 . Power Chain Reactions 6 | . . . . . . . . . 1 . 3 . . . . 1 . . . 1 . . . . . . Alert | -11 -10 -10 -8 -8 -6 -6 -6 -6 -6 -6 -5 -5 -5 -5 -4 -4 -4 -4 -3 -3 -2 -2 -2 -1 -1 -1 ------- Run | Yrd Mat Sub Rec Scr Fac Was Fac Ext Cet Arc Fac Upp Upp War Pro Fac Arm Lab Res Qua Res Tes Frg Acc Com Ac0 Maximum Alert Level 5 | . . . . . . . 2 2 2 1 1 . . . . 2 1 . . 1 2 2 5 5 4 . Low Security (%) 39 | 100 100 . 100 . 100 100 55 18 . 13 80 . . . . 55 87 . 100 77 28 . 2 . . . Level 1 21 | . . . . . . . 17 57 86 86 19 . . . . 43 12 . . 22 32 99 20 . . . Level 2 8 | . . . . . . . 26 24 13 . . . . . . 1 . . . . 38 . 17 . . . Level 3 1 | . . . . . . . . . . . . . . . . . . . . . . . 10 . 2 . Level 4 24 | . . . . . . . . . . . . . . . . . . . . . . . 16 73 97 . Level 5 4 | . . . . . . . . . . . . . . . . . . . . . . . 31 26 . . High Security . | . . . . . . . . . . . . . . . . . . . . . . . . . . . Max Security . | . . . . . . . . . . . . . . . . . . . . . . . . . . . Peak Influence 1993 | . 47 . 78 . 5 27 632 643 432 306 385 . . . . 418 381 . 101 239 530 404 1993 1673 1200 . Initial 1178 | . . . 33 . . . . 291 338 124 79 . . . . 150 6 . . 21 105 281 132 1178 1061 . Average 377 | . 7 . 12 . . 1 253 346 352 255 115 . . . . 214 102 . 15 164 303 264 1092 1439 1119 . Influence Increases 13265 | . 206 155 265 . 5 36 1144 1178 276 242 924 350 35 362 122 734 704 . 402 565 881 622 2552 919 464 122 Destroy 0b10 Robot/C 7000 | . 120 100 100 . . . 500 600 140 80 420 300 20 240 80 360 220 . 200 260 520 260 1640 620 220 . Destroy 0b10 Robot/NC 585 | . 20 . 20 . 5 . 35 45 10 20 40 5 5 . 10 35 10 . 30 25 55 35 90 60 30 . Destroy Leader 1102 | . 36 10 . . . . 118 84 . . 94 30 10 . 10 54 54 . 48 52 108 46 210 118 20 . Allied During Kill 1300 | . . . 7 . . . 399 341 111 100 218 . . 92 22 . . . . . . . . 3 7 . Successful Hack 260 | . 14 . 16 . . . 19 15 . . 5 . . . . 13 26 . 54 . 30 50 . 3 15 . Select Force Hacks 120 | . . . 120 . . . . . . . . . . . . . . . . . . . . . . . Disable Machine 840 | . . . . . . . 30 45 . 30 30 . . . . 15 60 . . 105 15 120 285 15 45 45 Anti-Garrison Action 150 | . . . . . . . . . . . . . . . . . . . . . . . 150 . . . Destroy Structure 1038 | . 1 . 2 . . 36 28 3 15 12 42 . . . . 62 34 . 10 78 123 111 177 100 127 77 Advance Influence 150 | . . . . . . . . . . . . . . . . 150 . . . . . . . . . . Partial Spotted 75 | . . . . . . . . . . . . . . . . 45 15 . . 15 . . . . . . Lose Combat Pursuer 645 | . 15 45 . . . . 15 45 . . 75 15 . 30 . . 285 . 60 30 30 . . . . . Influence Decreases 13243 | . 188 102 336 . 5 36 547 1170 569 328 806 642 87 134 350 720 337 381 364 415 569 887 823 1224 886 1337 Entered New Map 4755 | . . 10 38 . . . . 306 267 188 147 128 11 . 228 . 8 381 . 17 83 219 103 786 598 1237 Time Decay 6617 | . 178 66 298 . 5 36 387 644 222 130 473 514 76 54 92 262 248 . 264 398 446 518 680 428 198 . Lost Part 481 | . 10 26 . . . . . 80 . 10 10 . . . 10 . 75 . 100 . 40 . 40 10 30 40 Lost Ally 720 | . . . . . . . 160 140 80 . 80 . . 80 20 40 . . . . . . . . 60 60 Purge Threat 670 | . . . . . . . . . . . 96 . . . . 418 6 . . . . 150 . . . . Squads Dispatched 76 | . . . . . . . 8 5 . . 7 . . . . 2 5 . 4 4 6 4 17 13 1 . Investigation 10 | . . . . . . . 1 1 . . 2 . . . . . 1 . 1 . 1 . 1 2 . . Extermination 28 | . . . . . . . 4 . . . 2 . . . . 1 1 . . 2 3 4 7 3 1 . Reinforcement 23 | . . . . . . . 2 4 . . 3 . . . . 1 3 . 3 2 2 . . 3 . . Assault 15 | . . . . . . . 1 . . . . . . . . . . . . . . . 9 5 . . Garrison . | . . . . . . . . . . . . . . . . . . . . . . . . . . . Intercept . | . . . . . . . . . . . . . . . . . . . . . . . . . . . Searches Triggered . | . . . . . . . . . . . . . . . . . . . . . . . . . . . Unchained Authorized 1 | . . . . . . . . . . . . . . . . . . . . . . . . 1 . . Construction Impeded 2 | . . . . . . . 1 1 . . . . . . . . . . . . . . . . . . Haulers Reinforced 2 | . . . . . . . 1 . . . . . . . . . . . 1 . . . . . . . Active Scanning Responses . | . . . . . . . . . . . . . . . . . . . . . . . . . . . Cargo Convoy Interrupts 1 | . . . . . . . . . . . 1 . . . . . . . . . . . . . . . Stealth | -11 -10 -10 -8 -8 -6 -6 -6 -6 -6 -6 -5 -5 -5 -5 -4 -4 -4 -4 -3 -3 -2 -2 -2 -1 -1 -1 --------- Run | Yrd Mat Sub Rec Scr Fac Was Fac Ext Cet Arc Fac Upp Upp War Pro Fac Arm Lab Res Qua Res Tes Frg Acc Com Ac0 Distress Signals 39 | . 2 . . . . . . 4 2 . 1 . . 1 . . 2 . 11 . 1 . . . 15 . Communications Jammed 46 | . . . . . . . . . . . 10 . . . . . 15 . . . 14 . . 7 . . Distress Signals 39 | . . . . . . . . . . . 10 . . . . . 15 . . . 14 . . . . . Times Spotted 554 | . 13 14 3 . . 6 20 43 10 10 30 15 4 43 10 27 41 . 27 20 37 18 86 36 10 31 Peak Tracking Total 14 | . 2 4 2 . . 5 4 9 5 3 8 5 4 13 5 11 14 . 7 3 5 2 8 7 4 4 Tactical Retreats 23 | . 1 3 . . . . 1 1 . . 1 1 . 2 . . 9 . 1 1 2 . . . . . Traps | -11 -10 -10 -8 -8 -6 -6 -6 -6 -6 -6 -5 -5 -5 -5 -4 -4 -4 -4 -3 -3 -2 -2 -2 -1 -1 -1 ------- Run | Yrd Mat Sub Rec Scr Fac Was Fac Ext Cet Arc Fac Upp Upp War Pro Fac Arm Lab Res Qua Res Tes Frg Acc Com Ac0 Traps Triggered 31 | . . 2 . . 1 . . 4 . . 3 . . . . . . . 1 3 2 1 12 . 2 . Indirectly . | . . . . . . . . . . . . . . . . . . . . . . . . . . . Trap Hack Attempts . | . . . . . . . . . . . . . . . . . . . . . . . . . . . Triggered . | . . . . . . . . . . . . . . . . . . . . . . . . . . . Disarmed . | . . . . . . . . . . . . . . . . . . . . . . . . . . . Reprogrammed . | . . . . . . . . . . . . . . . . . . . . . . . . . . . Reused . | . . . . . . . . . . . . . . . . . . . . . . . . . . . Traps Extracted . | . . . . . . . . . . . . . . . . . . . . . . . . . . . Installed . | . . . . . . . . . . . . . . . . . . . . . . . . . . . Triggered . | . . . . . . . . . . . . . . . . . . . . . . . . . . . Machines | -11 -10 -10 -8 -8 -6 -6 -6 -6 -6 -6 -5 -5 -5 -5 -4 -4 -4 -4 -3 -3 -2 -2 -2 -1 -1 -1 ---------- Run | Yrd Mat Sub Rec Scr Fac Was Fac Ext Cet Arc Fac Upp Upp War Pro Fac Arm Lab Res Qua Res Tes Frg Acc Com Ac0 Machines Disabled 67 | . . . . . . . 2 3 . 2 2 . . . . 1 4 4 . 7 1 9 25 1 3 3 Max in Single Turn 1 | . . . . . . . 1 1 . . 1 . . . . 1 1 1 . 1 1 1 1 1 1 1 Garrison Access 4 | . . . . . . . . . . . 1 . . . . . . . . . 1 1 1 . . . Machines Repaired . | . . . . . . . . . . . . . . . . . . . . . . . . . . . Machines Dismantled . | . . . . . . . . . . . . . . . . . . . . . . . . . . . Machines Sabotaged . | . . . . . . . . . . . . . . . . . . . . . . . . . . . Overloaded Fab Kills . | . . . . . . . . . . . . . . . . . . . . . . . . . . . Hacking | -11 -10 -10 -8 -8 -6 -6 -6 -6 -6 -6 -5 -5 -5 -5 -4 -4 -4 -4 -3 -3 -2 -2 -2 -1 -1 -1 --------- Run | Yrd Mat Sub Rec Scr Fac Was Fac Ext Cet Arc Fac Upp Upp War Pro Fac Arm Lab Res Qua Res Tes Frg Acc Com Ac0 Machines Accessed 93 | . 6 . 9 2 . . 6 9 . . 7 . . 1 . 8 7 . 6 5 5 10 3 5 3 1 Terminals 56 | . 5 . 5 . . . 3 9 . . 4 . . . . 6 5 . 3 2 1 5 1 4 3 . Fabricators 4 | . . . . . . . . . . . 1 . . . . . 1 . . . 1 1 . . . . Repair Stations 8 | . . . . . . . 2 . . . 1 . . . . 1 . . 1 1 . 1 1 . . . Recycling Units 8 | . 1 . 4 . . . . . . . . . . . . . 1 . 1 . 1 . . . . . Scanalyzers 8 | . . . . . . . 1 . . . . . . . . 1 . . 1 2 1 2 . . . . Garrison Access 5 | . . . . . . . . . . . 1 . . . . . . . . . 1 1 1 1 . . Total Hacks 208 | . 19 . 17 3 . . 13 22 . . 24 . . 1 . 23 17 . 9 9 11 20 4 7 5 4 Successful 97 | . 10 . 9 3 . . 4 6 . . 12 . . 1 . 11 9 . 5 1 7 11 . 2 2 4 Failed 110 | . 9 . 8 . . . 9 16 . . 12 . . . . 12 8 . 4 7 4 9 4 5 3 . Catastrophic 19 | . . . . . . . 3 3 . . 2 . . . . 2 . . 1 . 1 4 1 1 1 . Database Lockouts 1 | . . . . . . . . . . . . . . . . . . . . 1 . . . . . . Manual 66 | . 10 . 5 . . . 2 3 1 . 10 . . . . 7 9 . 1 3 4 8 1 1 1 . Terminals 137 | . 17 . 13 . . . 7 22 . . 16 . . . . 18 13 . 4 5 3 8 1 5 5 . Fabricators 9 | . . . . . . . . . . . 3 . . . . . 1 . . . 2 3 . . . . Repair Stations 20 | . . . . . . . 5 . . . 4 . . . . 4 . . 2 1 . 3 1 . . . Recycling Units 11 | . 2 . 4 . . . . . . . . . . . . . 3 . 1 . 1 . . . . . Scanalyzers 16 | . . . . . . . 1 . . . . . . . . 1 . . 2 3 4 5 . . . . Garrison Access 7 | . . . . . . . . . . . 1 . . . . . . . . . 1 1 2 2 . . Terminal Hacks 52 | . 4 . 4 3 . . 1 6 . . 7 . . 1 . 7 5 . 2 . 2 2 . 2 2 4 Record 5 | . . . . 2 . . . . . . 1 . . . . 1 . . 1 . . . . . . . Part Schematic 1 | . . . . . . . . . . . . . . . . . . . . . 1 . . . . . Prototype ID Bank 2 | . 1 . 1 . . . . . . . . . . . . . . . . . . . . . . . Open Door 10 | . . . . 1 . . . 5 . . . . . 1 . . . . . . . . . 2 1 . Branch Access Points 6 | . 1 . . . . . 1 . . . 1 . . . . 1 . . 1 . 1 . . . . . Machine Index 1 | . . . . . . . . . . . 1 . . . . . . . . . . . . . . . Terminal Index 2 | . . . . . . . . . . . . . . . . 1 . . . . . . . . 1 . Alert Level 1 | . . . . . . . . . . . . . . . . . 1 . . . . . . . . . Unreport Threat 7 | . . . . . . . . . . . 2 . . . . 3 1 . . . . 1 . . . . Locate Traps 4 | . 1 . . . . . . 1 . . . . . . . 1 1 . . . . . . . . . Extermination Status 1 | . . . 1 . . . . . . . . . . . . . . . . . . . . . . . Hauler Manifests 4 | . 1 . 1 . . . . . . . 2 . . . . . . . . . . . . . . . Zone Layout 4 | . . . 1 . . . . . . . . . . . . . 2 . . . . 1 . . . . Gate Test 138-A 1 | . . . . . . . . . . . . . . . . . . . . . . . . . . 1 Gate Test 138-B 1 | . . . . . . . . . . . . . . . . . . . . . . . . . . 1 Gate Test 138-C 2 | . . . . . . . . . . . . . . . . . . . . . . . . . . 2 Fabricator Hacks 5 | . . . . . . . . . . . 1 . . . . . 1 . . . 1 2 . . . . Network Status 1 | . . . . . . . . . . . . . . . . . 1 . . . . . . . . . Load Schematic 2 | . . . . . . . . . . . . . . . . . . . . . 1 1 . . . . Build 2 | . . . . . . . . . . . 1 . . . . . . . . . . 1 . . . . Repair Station Hacks 13 | . . . . . . . 3 . . . 2 . . . . 4 . . 2 . . 2 . . . . Scan Component 7 | . . . . . . . 2 . . . 1 . . . . 2 . . 1 . . 1 . . . . Repair 6 | . . . . . . . 1 . . . 1 . . . . 2 . . 1 . . 1 . . . . Recycling Unit Hacks . | . . . . . . . . . . . . . . . . . . . . . . . . . . . Scanalyzer 7 | . . . . . . . . . . . . . . . . . . . 1 1 2 3 . . . . Insert Component 1 | . . . . . . . . . . . . . . . . . . . 1 . . . . . . . Retrieve Study 6 | . . . . . . . . . . . . . . . . . . . . 1 2 3 . . . . Garrison Access Hacks 3 | . . . . . . . . . . . 1 . . . . . . . . . 1 1 . . . . Seal Access 3 | . . . . . . . . . . . 1 . . . . . . . . . 1 1 . . . . Unauthorized Hacks 17 | . 6 . 5 . . . . . . . 1 . . . . . 3 . . . 1 1 . . . . Terminals 10 | . 6 . 1 . . . . . . . 1 . . . . . 2 . . . . . . . . . Track 1 | . . . . . . . . . . . . . . . . . 1 . . . . . . . . . Botnet 4 | . 1 . 1 . . . . . . . 1 . . . . . 1 . . . . . . . . . Skim 5 | . 5 . . . . . . . . . . . . . . . . . . . . . . . . . Fabricators 2 | . . . . . . . . . . . . . . . . . . . . . 1 1 . . . . Prioritize 1 | . . . . . . . . . . . . . . . . . . . . . . 1 . . . . Recompile 1 | . . . . . . . . . . . . . . . . . . . . . 1 . . . . . Repair Stations . | . . . . . . . . . . . . . . . . . . . . . . . . . . . Recycling Units 5 | . . . 4 . . . . . . . . . . . . . 1 . . . . . . . . . Tunnel 4 | . . . 4 . . . . . . . . . . . . . . . . . . . . . . . Fedlink 1 | . . . . . . . . . . . . . . . . . 1 . . . . . . . . . Scanalyzers . | . . . . . . . . . . . . . . . . . . . . . . . . . . . Garrison Access . | . . . . . . . . . . . . . . . . . . . . . . . . . . . Data Cores Recovered . | . . . . . . . . . . . . . . . . . . . . . . . . . . . Used . | . . . . . . . . . . . . . . . . . . . . . . . . . . . Hacking Detections 68 | . 6 . 4 . . . 5 6 . . 4 . . . . 7 5 . 6 4 3 9 3 4 2 . Full Trace Events 5 | . . . . . . . 1 . . . 1 . . . . . . . . . . . 1 2 . . Feedback Events 2 | . . . . . . . . . . . . . . . . . . . . . . . 1 1 . . Corruption 1 | . . . . . . . . . . . . . . . . . . . . . . . . 1 . . Hackware Fried 1 | . . . . . . . . . . . . . . . . . . . . . . . 1 . . . Feedback Blocked . | . . . . . . . . . . . . . . . . . . . . . . . . . . . Robot Schematics Acquired . | . . . . . . . . . . . . . . . . . . . . . . . . . . . Robots Built . | . . . . . . . . . . . . . . . . . . . . . . . . . . . Authchips . | . . . . . . . . . . . . . . . . . . . . . . . . . . . Time . | . . . . . . . . . . . . . . . . . . . . . . . . . . . Total Robot Build Rating . | . . . . . . . . . . . . . . . . . . . . . . . . . . . Part Schematics Acquired 1 | . . . . . . . . . . . . . . . . . . . . . 1 . . . . . Parts Built 4 | . . . . . . . . . . . 2 . . . . . . . . . . 2 . . . . Authchips 1 | . . . . . . . . . . . . . . . . . . . . . . 1 . . . . Time 127 | . . . . . . . . . . . 69 . . . . . . . . . . 58 . . . . Total Part Build Rating 32 | . . . . . . . . . . . 18 . . . . . . . . . . 14 . . . . Part Studies Acquired 6 | . . . . . . . . . . . . . . . . . . . . 1 2 3 . . . . Parts Repaired 5 | . . . . . . . 1 . . . 1 . . . . 2 . . 1 . . . . . . . Time 301 | . . . . . . . 68 . . . 68 . . . . 112 . . 25 . . 28 . . . . Parts Recycled . | . . . . . . . . . . . . . . . . . . . . . . . . . . . Recycled Matter . | . . . . . . . . . . . . . . . . . . . . . . . . . . . Retrieved Matter . | . . . . . . . . . . . . . . . . . . . . . . . . . . . Retrieved Components . | . . . . . . . . . . . . . . . . . . . . . . . . . . . Parts Scanalyzed . | . . . . . . . . . . . . . . . . . . . . . . . . . . . Part Schematics Acquired . | . . . . . . . . . . . . . . . . . . . . . . . . . . . Parts Damaged . | . . . . . . . . . . . . . . . . . . . . . . . . . . . Bothacking | -11 -10 -10 -8 -8 -6 -6 -6 -6 -6 -6 -5 -5 -5 -5 -4 -4 -4 -4 -3 -3 -2 -2 -2 -1 -1 -1 ------------ Run | Yrd Mat Sub Rec Scr Fac Was Fac Ext Cet Arc Fac Upp Upp War Pro Fac Arm Lab Res Qua Res Tes Frg Acc Com Ac0 Used RIF Installer . | . . . . . . . . . . . . . . . . . . . . . . . . . . . Robots Hacked . | . . . . . . . . . . . . . . . . . . . . . . . . . . . Non-combat . | . . . . . . . . . . . . . . . . . . . . . . . . . . . Combat . | . . . . . . . . . . . . . . . . . . . . . . . . . . . Robot Hacks Applied . | . . . . . . . . . . . . . . . . . . . . . . . . . . . Relay Couplers Released 1 | . . . . . . . . . . . . . . . . . . . . . . . 1 . . . Machine Destruction 1 | . . . . . . . . . . . . . . . . . . . . . . . 1 . . . Fabnet Peak Effective % . | . . . . . . . . . . . . . . . . . . . . . . . . . . . Robots Rewired 21 | . . . 3 . . . . 8 . 1 1 . . 5 3 . . . . . . . . . . . Allies Hacked 1 | . . . . . . . . . . . 1 . . . . . . . . . . . . . . . Hacks Repelled . | . . . . . . . . . . . . . . . . . . . . . . . . . . . Allies | -11 -10 -10 -8 -8 -6 -6 -6 -6 -6 -6 -5 -5 -5 -5 -4 -4 -4 -4 -3 -3 -2 -2 -2 -1 -1 -1 -------- Run | Yrd Mat Sub Rec Scr Fac Was Fac Ext Cet Arc Fac Upp Upp War Pro Fac Arm Lab Res Qua Res Tes Frg Acc Com Ac0 Total Allies 52 | . . . 3 . . 18 . 16 5 1 1 . . 5 3 . . . . . . . . . . . Largest Group 18 | . . . 3 1 . 18 16 13 11 7 4 . . 5 3 2 . . . . . . . . . . Highest-Rated Group 723 | . . . 43 18 . 638 586 355 723 444 308 . . 215 130 84 . . . . . . . . . . Highest-Rated Ally 159 | . . . 18 18 . 50 50 159 159 96 96 . . 49 46 46 . . . . . . . . . . Initial UFD Resources 48 | . . . . . 24 24 24 24 24 24 26 26 26 26 29 29 29 39 42 42 46 46 46 48 48 48 Total Orders 42 | . . . . . . . . 8 . 4 2 . . 1 1 . . . . . . . . 1 2 23 STAY 6 | . . . . . . . . 2 . 1 1 . . 1 . . . . . . . . . . . 1 FOLLOW 12 | . . . . . . . . 6 . 3 1 . . . 1 . . . . . . . . . . 1 EXPLORE 9 | . . . . . . . . . . . . . . . . . . . . . . . . . . 9 RETURN 15 | . . . . . . . . . . . . . . . . . . . . . . . . 1 2 12 Ally Attacks 662 | . . . 6 . . 97 118 136 27 38 58 . . 63 18 1 . . . . . . . 2 60 38 Total Damage 22954 | . . . 172 . . 3874 2635 2453 949 1380 2170 . . 2909 393 22 . . . . . . . 180 3688 2129 Kills 89 | . . . 1 . . 8 20 16 5 6 15 . . 12 1 . . . . . . . . . . 5 Allies Corrupted 5 | . . . . . . . . 4 . . . . . . . . . . . . . . . . 1 . Allies Melted . | . . . . . . . . . . . . . . . . . . . . . . . . . . . Intel | -11 -10 -10 -8 -8 -6 -6 -6 -6 -6 -6 -5 -5 -5 -5 -4 -4 -4 -4 -3 -3 -2 -2 -2 -1 -1 -1 ------- Run | Yrd Mat Sub Rec Scr Fac Was Fac Ext Cet Arc Fac Upp Upp War Pro Fac Arm Lab Res Qua Res Tes Frg Acc Com Ac0 Active Infowar (turns) 18122 | . . . . . 110 328 1723 1180 87 . 1287 1319 1290 1063 862 575 653 360 826 956 1114 1051 927 1053 1358 . Optics 4440 | . . . . . . . . . . . . . 867 1063 862 575 653 360 60 . . . . . . . Sensors 4412 | . . . . . . 94 . 143 . . 739 1287 1290 502 357 . . . . . . . . . . . IFF 1372 | . . . . . . . . . . . . . . . . . 238 . 583 551 . . . . . . Terrain 9984 | . . . . . 25 234 1723 123 . . 721 1285 1290 879 763 9 . . . 437 396 947 398 754 . . Seismic 3821 | . . . . . 110 231 1723 1007 87 . 398 . . . . 32 143 . 90 . . . . . . . Cloaking 2894 | . . . . . . . . . . . . . 313 . . . . . . . . . 407 864 1310 . Jamming 6884 | . . . . . . . . . . . 945 23 . . . 400 101 . 693 955 1114 677 668 1053 255 . Robot Analysis Total . | . . . . . . . . . . . . . . . . . . . . . . . . . . . Derelict Logs Recovered 5 | . . . . 1 . . . . . . . 2 1 . 1 . . . . . . . . . . . Drone Launches 31 | . . . . . . . . . . . . . . . . . . . . . . . . 2 7 22 Drone Recoveries 21 | . . . . . . . . . . . . . . . . . . . . . . . . 2 4 15 Exploration | -11 -10 -10 -8 -8 -6 -6 -6 -6 -6 -6 -5 -5 -5 -5 -4 -4 -4 -4 -3 -3 -2 -2 -2 -1 -1 -1 ------------- Run | Yrd Mat Sub Rec Scr Fac Was Fac Ext Cet Arc Fac Upp Upp War Pro Fac Arm Lab Res Qua Res Tes Frg Acc Com Ac0 Turns Passed 36142 | 80 1319 1289 1956 4290 112 667 1723 2331 476 265 1429 1413 1290 1063 862 575 653 360 1132 956 1114 1431 2691 1053 4991 621 Spaces Moved 21622 | 55 483 575 652 1656 69 606 982 1005 167 128 773 829 779 528 479 678 908 197 746 515 667 1020 1791 724 4158 452 Core 372 | 14 . . . . . 358 . . . . . . . . . . . . . . . . . . . . Treads 7255 | 41 483 151 532 1066 . 28 . 943 167 128 773 829 779 528 479 . . . 328 . . . . . . . Legs 9584 | . . . . . . . . . . . . . . . . . . . 257 515 667 1020 1791 724 4158 452 Wheels 2469 | . . 424 120 590 69 220 982 62 . . . . . . . . . . 2 . . . . . . . Hover 1942 | . . . . . . . . . . . . . . . . 678 908 197 159 . . . . . . . Flight . | . . . . . . . . . . . . . . . . . . . . . . . . . . . Fastest Speed 31 | 50 160 130 130 145 145 50 160 160 160 160 160 160 160 160 160 31 31 43 43 112 105 103 85 110 88 88 Average Speed 137 | 132 241 194 284 256 145 86 160 185 170 160 160 160 160 171 160 40 45 43 127 116 112 109 97 110 99 89 Slowest Speed 480 | 160 320 480 317 345 145 160 160 240 240 160 160 160 160 240 160 102 176 43 257 120 172 165 176 113 110 165 Overloaded Moves 33 | . . . . . . . . . . . . . . . . 11 22 . . . . . . . . . Propulsion Burnouts . | . . . . . . . . . . . . . . . . . . . . . . . . . . . Robots Hopped . | . . . . . . . . . . . . . . . . . . . . . . . . . . . Potential Cave-ins 21 | . . 2 . . . . . . . . . . . . . . . . . 4 . . 15 . . . Cave-ins Triggered . | . . . . . . . . . . . . . . . . . . . . . . . . . . . Teleports 2 | . . . . . . . . . . . . . . . . . . . . . . . 1 . 1 . Exploration Rate (%) 57 | 4 84 45 98 88 2 95 25 81 56 77 19 88 77 74 63 21 61 95 27 83 22 86 28 22 94 47 Regions Visited 26 Branch Regions 17 Pre-discovered Areas 7 | . 1 . 4 1 . . . . . . . . 1 . . . . . . . . . . . . . Known Exits Taken 10 | . 1 1 . . . . 1 . . 1 1 1 . . 1 1 . . 1 . 1 . . . . . Unknown Exits Taken 14 | 1 . . 1 1 . . . 1 1 . . . 1 1 . . 1 1 . 1 . 1 1 1 1 . Scrap Searched 22 | . . 8 . 5 . . . . . . . 1 5 . 3 . . . . . . . . . . . Spaces Dug 193 | . . 2 . . . . 9 1 . . 3 1 6 1 . 8 15 . 5 27 14 25 29 23 19 5 Terrain Destroyed 437 | . . 7 2 . . . 22 18 3 . 5 42 10 3 . 32 17 . 5 47 41 38 57 32 39 17 Melee 87 | . . . . . . . 2 . . . 3 1 . . . 1 8 . 5 8 8 12 7 19 12 1 Projectile 226 | . . 7 2 . . . 10 18 . . . . 10 3 . 10 9 . . 30 11 26 37 12 26 15 AOE 108 | . . . . . . . 10 . 3 . 2 41 . . . 21 . . . 9 22 . . . . . Terrain Rammed . | . . . . . . . . . . . . . . . . . . . . . . . . . . . Walls Destroyed . | . . . . . . . . . . . . . . . . . . . . . . . . . . . Machines Disabled . | . . . . . . . . . . . . . . . . . . . . . . . . . . . Actions | -11 -10 -10 -8 -8 -6 -6 -6 -6 -6 -6 -5 -5 -5 -5 -4 -4 -4 -4 -3 -3 -2 -2 -2 -1 -1 -1 --------- Run | Yrd Mat Sub Rec Scr Fac Was Fac Ext Cet Arc Fac Upp Upp War Pro Fac Arm Lab Res Qua Res Tes Frg Acc Com Ac0 Total 26838 | 60 555 665 727 1722 79 756 1084 1338 335 174 906 878 808 683 553 920 1087 446 885 758 941 1269 2597 965 5010 637 Wait 1892 | . 12 19 8 1 . 88 12 80 97 6 7 5 . 17 8 93 41 206 28 70 105 55 264 88 582 . Move 21597 | 54 482 574 651 1655 69 605 981 1004 166 127 772 828 778 527 478 677 907 196 745 514 666 1019 1790 723 4157 452 Hop . | . . . . . . . . . . . . . . . . . . . . . . . . . . . Pick Up 357 | . 11 12 12 28 1 22 17 15 9 3 16 . 3 10 2 15 16 11 16 20 16 23 49 5 21 4 Fast Attach 157 | 6 1 1 2 1 2 9 2 8 8 2 9 . 2 17 1 3 2 2 10 4 4 5 32 1 17 6 Attach 218 | . 1 8 1 1 5 2 8 13 4 3 6 2 2 4 3 19 12 . 13 4 9 8 47 14 22 7 Detach 166 | . . 3 2 2 . 8 6 8 5 2 6 2 3 9 1 10 3 1 6 2 3 3 42 12 24 3 Swap 303 | . 1 2 3 2 1 1 2 7 2 . 15 8 1 6 7 15 21 2 11 26 25 33 50 12 15 35 Drop 357 | . 1 2 3 32 . 21 13 11 18 3 17 . 4 22 2 19 10 9 11 17 16 28 64 3 25 6 Fire 627 | . 45 44 16 . . . 12 25 17 1 13 3 10 6 1 12 11 . . 59 23 42 163 18 46 60 Melee 968 | . . . . . 1 . 31 116 9 16 42 30 5 1 22 57 64 19 45 42 69 53 93 89 100 64 Ram . | . . . . . . . . . . . . . . . . . . . . . . . . . . . Kick 5 | . . . . . . . . . . . . . . . . . . . . . 5 . . . . . Crush 2 | . 1 . . . . . . . . . 1 . . . . . . . . . . . . . . . Escape Stasis 12 | . . . . . . . . 8 . . . . . . . . . . . . . . 3 . 1 . Rewire 177 | . . . 29 . . . . 43 . 11 2 . . 64 28 . . . . . . . . . . . Trap . | . . . . . . . . . . . . . . . . . . . . . . . . . . . Miscellaneous . | . . . . . . . . . . . . . . . . . . . . . . . . . . . Route ------- -11/Scrapyard -10/Materials (discovered 6 exits: [*Mat x3] / *Min x2 / *Sub) -10/Subcaves (discovered 3 exits: *Mat x2 / *Rec) -8/Recycling (discovered 2 exits: [*Fac] / *Scr) -8/Scraptown (discovered 2 exits: [*Fac x2]) -6/Factory -6/Waste -6/Factory (discovered 6 exits: *Fac x2 / Low x2 / *Ext x2) -6/Extension (discovered 2 exits: *Fac / *Cet) -6/Cetus (discovered 2 exits: *Fac / [*Arc]) -6/Archives (discovered 2 exits: *Fac / [*Hub]) -5/Factory (discovered 3 exits: *Fac / *Upp x2) -5/Upper Caves -5/Upper Caves -5/Warlord -4/Proximity Caves -4/Factory (discovered 3 exits: Upp x2 / *Arm) -4/Armory -4/Lab -3/Research (discovered 3 exits: *Res / *Qua x2) -3/Quarantine -2/Research (discovered 2 exits: *Tes x2) -2/Testing (discovered 2 exits: [*Sec] / *Frg) -2/Protoforge -1/Access -1/Command (discovered 3 exits: [*Sur x2] / *Ac0) -1/Access_0 Subspace History --------- Turn | Location | Event 8 | -11/Scrapyard | Discovered new exit (range 16) 81 | -11/Scrapyard | Entered Materials 93 | -10/Materials | Identified exit to Mines 310 | -10/Materials | Build established: Mutant 573 | -10/Materials | Discovered new exit (range 15) 867 | -10/Materials | Discovered new exit (range 5) 975 | -10/Materials | Learned Storage emergency access door positions 1016 | -10/Materials | Identified exit to Subcaves 1063 | -10/Materials | Learned Storage emergency access door positions 1071 | -10/Materials | Learned location of 2 exits from Subcaves 1072 | -10/Materials | Learned location of 2 exits from Subcaves 1073 | -10/Materials | Learned 4 Subcaves zone layouts 1081 | -10/Materials | Learned 2 Mines zone layouts 1199 | -10/Materials | Discovered new exit (range 4) 1400 | -10/Materials | Entered Subcaves 1401 | -10/Subcaves | Identified exit to Materials 1401 | -10/Subcaves | Identified exit to Recycling 1991 | -10/Subcaves | Core integrity fell below 50% 2249 | -10/Subcaves | Shifting Twisted Machinery released Sub. Monowheel 2273 | -10/Subcaves | Shifting Twisted Machinery released Sub. Beam Cannon 2285 | -10/Subcaves | Shifting Twisted Machinery released Sub. Power Source 2324 | -10/Subcaves | Shifting Twisted Machinery released Riot Gun 2531 | -10/Subcaves | Shifting Twisted Machinery released Sub. Beam Cannon 2536 | -10/Subcaves | Shifting Twisted Machinery released Sub. Monowheel 2664 | -10/Subcaves | Core integrity fell below 20% 2689 | -10/Subcaves | Entered Recycling 2692 | -8/Recycling | Lost 3 parts (1p1n1u) 4017 | -8/Recycling | Discovered new exit (range 8) 4506 | -8/Recycling | Scanned before Scraplab entrance 4550 | -8/Recycling | Entered Scraplab 4575 | -8/Recycling | Discovered new exit (range 3) 4645 | -8/Recycling | Entered Scraptown 4645 | -8/Scraptown | Accompanied by 1 ally 4914 | -8/Scraptown | Heard Great Nut preacher, LISTEN AND RECITE! 5306 | -8/Scraptown | Scanned Subdweller tech in exchange for log data 5316 | -8/Scraptown | Learned location of 1 exit from Proximity Caves 5370 | -8/Scraptown | Discovered new exit (range 5) 5669 | -8/Scraptown | Visited Awakened 5695 | -8/Scraptown | Visited Cyclists 6439 | -8/Scraptown | Visited Comm Corps 6575 | -8/Scraptown | Visited Symbiants 6632 | -8/Scraptown | Visited Shadow of the Wyrm 6873 | -8/Scraptown | Visited Fellowship of the Rings 6996 | -8/Scraptown | Visited UFD Registry 6996 | -8/Scraptown | Registered with UFD as "Fissiondome" 7104 | -8/Scraptown | Visited A0-MCA Data Center 7126 | -8/Scraptown | Given a B- rating by A0-MCA 7136 | -8/Scraptown | Found A0-MCA's Component Scanner 7217 | -8/Scraptown | Visited Infowarlord's Domain 7243 | -8/Scraptown | Found Exp. Sensor Array 7316 | -8/Scraptown | Visited Junk Repository 7436 | -8/Scraptown | Visited LU-1G1's Boring Crew 7474 | -8/Scraptown | Visited Sword Containment 7534 | -8/Scraptown | Visited Scrap Suit Storage 7578 | -8/Scraptown | Visited Curators Association 7927 | -8/Scraptown | Visited Derelict Rescue Squad 7975 | -8/Scraptown | Found DRS Beacon 8045 | -8/Scraptown | Visited Supply Room 8120 | -8/Scraptown | Visited Chapter 10 8310 | -8/Scraptown | Found Prototype Slashing Weapon 8310 | -8/Scraptown | Identified Companion Sword 8769 | -8/Scraptown | Discovered new exit (range 3) 8852 | -8/Scraptown | Met Optimus 8852 | -8/Scraptown | Accepted into 0bPrime 8935 | -8/Scraptown | Entered Factory 8935 | -6/Factory | Evolved 8 slots: Propulsion x2, Utility x6 9047 | -6/Factory | Sucked down chute 9047 | -6/Factory | Entered Waste 9178 | -6/Waste | Spotted C-40 Crusher 9180 | -6/Waste | Spotted C-40 Crusher 9186 | -6/Waste | Crushed by Compactor (1 part destroyed, 2 dropped) 9188 | -6/Waste | Spotted C-40 Crusher 9190 | -6/Waste | Spotted C-40 Crusher 9195 | -6/Waste | Crushed by Compactor (1 part destroyed) 9211 | -6/Waste | Spotted C-40 Crusher 9223 | -6/Waste | Spotted C-40 Crusher 9294 | -6/Waste | Discovered new exit (range 12) 9300 | -6/Waste | Warlord forces began an assault 9373 | -6/Waste | Found Adv. Powered Armor 9412 | -6/Waste | Allies destroyed C-40 Crusher 9714 | -6/Waste | Entered Factory 9714 | -6/Factory | Accompanied by 16 allies 10180 | -6/Factory | Discovered new exit (range 3) 10204 | -6/Factory | Build established: Hacker-Mutant 10521 | -6/Factory | Repaired Adv. Powered Armor 10546 | -6/Factory | Discovered new exit (range 15) 10830 | -6/Factory | Identified exit to Factory 10978 | -6/Factory | P-60 Hacker assimilated allied 1Y-J4K(g) 10996 | -6/Factory | Identified exit to Lower Caves 10996 | -6/Factory | Identified exit to Extension 11114 | -6/Factory | First assault squad dispatched 11437 | -6/Factory | Entered Extension 11437 | -6/Extension | Accompanied by 4 allies 11685 | -6/Extension | Lost 4 parts (1p1n2u) 11859 | -6/Extension | System corruption reached 10% 11942 | -6/Extension | Rescued a captive Derelict 11994 | -6/Extension | Rescued a captive Derelict 12172 | -6/Extension | Rescued a captive Derelict 12429 | -6/Extension | Build established: Commander-Mutant 12834 | -6/Extension | Spotted B-75 Beast 12843 | -6/Extension | Core integrity fell below 50% 12846 | -6/Extension | Spotted B-75 Beast 12850 | -6/Extension | Allies destroyed B-75 Beast 12872 | -6/Extension | Allies destroyed B-75 Beast 12913 | -6/Extension | Lost 4 allies 13001 | -6/Extension | Rescued a captive Derelict 13036 | -6/Extension | Rescued a captive Derelict 13044 | -6/Extension | Rescued a captive Derelict 13216 | -6/Extension | Build established: Scavenger-Mutant 13294 | -6/Extension | Rescued a captive Derelict 13348 | -6/Extension | Rescued A7 13509 | -6/Extension | Discovered exit to Factory (range 10) 13511 | -6/Extension | Discovered new exit (range 6) 13768 | -6/Extension | Entered Cetus 13768 | -6/Cetus | Accompanied by 7 allies (A7) 13773 | -6/Cetus | Acquired a Cetus Manufacturing Module code from A7 13800 | -6/Cetus | Spotted Cetus Guard 13800 | -6/Cetus | Spotted Cetus Guard 13802 | -6/Cetus | Spotted Cetus Guard 13803 | -6/Cetus | Spotted Cetus Guard 13808 | -6/Cetus | Attached CPS modules to Cetus Guard. 13809 | -6/Cetus | Allies destroyed Cetus Guard 13810 | -6/Cetus | Attached CPS modules to Cetus Guard. 13821 | -6/Cetus | Destroyed Cetus Guard 13823 | -6/Cetus | Destroyed Cetus Guard 13824 | -6/Cetus | Destroyed Cetus Guard 13914 | -6/Cetus | Started Cetus Manufacturing Module 13934 | -6/Cetus | Discovered new exit (range 15) 13939 | -6/Cetus | Manufactured an Enhanced Grunt 13964 | -6/Cetus | Manufactured an Enhanced Grunt 13989 | -6/Cetus | Manufactured an Enhanced Grunt 14014 | -6/Cetus | Manufactured an Enhanced Grunt 14039 | -6/Cetus | Manufactured an Enhanced Grunt 14056 | -6/Cetus | Spotted Cetus Guard 14056 | -6/Cetus | Spotted Cetus Guard 14061 | -6/Cetus | Spotted Cetus Guard 14071 | -6/Cetus | Spotted Cetus Guard 14077 | -6/Cetus | Allies destroyed Cetus Guard 14082 | -6/Cetus | Allies destroyed Cetus Guard 14083 | -6/Cetus | Allies destroyed Cetus Guard 14087 | -6/Cetus | Discovered exit to Factory (range 15) 14097 | -6/Cetus | Met Revision 17 14111 | -6/Cetus | Lost 3 allies 14180 | -6/Cetus | Attached CPS modules to A7. 14209 | -6/Cetus | Murdered A7 14214 | -6/Cetus | Extracted ID and sensor layout for unrecognized location from A7's data core 14219 | -6/Cetus | Found Prototype Protection 14219 | -6/Cetus | Identified Med. Regenerative Plating 14244 | -6/Cetus | Entered Archives 14244 | -6/Archives | Accompanied by 7 allies 14269 | -6/Archives | Core integrity fell below 20% 14290 | -6/Archives | Discovered new exit (range 13) 14365 | -6/Archives | Discovered exit to Factory (range 13) 14509 | -6/Archives | Entered Factory 14509 | -5/Factory | Accompanied by 4 allies 14509 | -5/Factory | Evolved 2 slots: Power x1, Utility x1 14727 | -5/Factory | Repaired Adv. Powered Armor 14897 | -5/Factory | Discovered new exit (range 6) 14939 | -5/Factory | Build established: Scavenger-Assassin 15097 | -5/Factory | Discovered new exit (range 7) 15140 | -5/Factory | Identified exit to Upper Caves 15369 | -5/Factory | Fabricated Cmb. Linear Gravjet? 15617 | -5/Factory | Cargo convoy interrupted 15653 | -5/Factory | Lost 3 allies 15690 | -5/Factory | Destroyed 8 combat bots 15916 | -5/Factory | Build established: Scavenger-Mutant 15938 | -5/Factory | Entered Upper Caves 16372 | -5/Upper Caves | Build established: Scavenger-Assassin 16539 | -5/Upper Caves | Encountered a Warlord checkpoint 16705 | -5/Upper Caves | Identified exit to Upper Caves 16940 | -5/Upper Caves | Learned 4 Factory zone layouts 17351 | -5/Upper Caves | Entered another Upper Caves area 17448 | -5/Upper Caves | Encountered a Warlord checkpoint 18436 | -5/Upper Caves | Discovered new exit (range 20) 18641 | -5/Upper Caves | Entered Warlord 18702 | -5/Warlord | System corruption cleaned by Quarantine Array 18761 | -5/Warlord | Received a Watcher feed algorithm from an ecstatic Tinkerer 19110 | -5/Warlord | Found Prototype Reactor 19110 | -5/Warlord | Identified Vortex Chain Reactor 19117 | -5/Warlord | Found Prototype Processor 19117 | -5/Warlord | Identified Exp. Targeting Computer 19140 | -5/Warlord | Found Prototype Processor 19140 | -5/Warlord | Identified Exp. Armor Integrity Analyzer 19144 | -5/Warlord | Found Prototype Device 19144 | -5/Warlord | Identified Exp. Focal Shield 19186 | -5/Warlord | Rebuked by Warlord 19211 | -5/Warlord | Warlord's base attacked by MAIN.C 19237 | -5/Warlord | Found Prototype Energy Gun 19237 | -5/Warlord | Identified Vortex Rail 19241 | -5/Warlord | Found Prototype Energy Cannon 19241 | -5/Warlord | Identified Vortex Cannon 19547 | -5/Warlord | Spotted B-86 Titan 19561 | -5/Warlord | Warlord forces counterattacked 19565 | -5/Warlord | Spotted B-75 Beast 19570 | -5/Warlord | Allies destroyed B-86 Titan 19630 | -5/Warlord | Lost 3 allies 19633 | -5/Warlord | Spotted Executioner 19637 | -5/Warlord | Attached CPS modules to Executioner. 19649 | -5/Warlord | Found Prototype Processor 19649 | -5/Warlord | Identified Exp. Core Analyzer 19657 | -5/Warlord | Found Prototype Device 19657 | -5/Warlord | Identified Adv. Kinecellerator 19663 | -5/Warlord | Spotted Striker 19668 | -5/Warlord | Found Exp. Targeting Computer 19688 | -5/Warlord | Discovered new exit (range 12) 19704 | -5/Warlord | Entered Proximity Caves 19705 | -4/Proximity Caves | Identified exit to Factory 19708 | -4/Proximity Caves | Spotter reported a threat 19725 | -4/Proximity Caves | Lost 12 allies 19815 | -4/Proximity Caves | Attacked by a faux Warlord 20470 | -4/Proximity Caves | Build established: Scavenger-Mutant 20566 | -4/Proximity Caves | Entered Factory 20566 | -4/Factory | Accompanied by 2 allies 20566 | -4/Factory | Evolved 2 slots: Propulsion x2 20664 | -4/Factory | Identified exit to Upper Caves 20664 | -4/Factory | Identified exit to Armory 20793 | -4/Factory | Repaired Adv. Powered Armor 20837 | -4/Factory | Repaired Microactuators 21141 | -4/Factory | Entered Armory 21409 | -4/Armory | Lost 4 parts (1p1n2u) 21451 | -4/Armory | System corruption reached 10% 21465 | -4/Armory | Found Adv. Force Booster 21467 | -4/Armory | Found Adv. Force Booster 21785 | -4/Armory | Loaded intel: 2 recycling unit locations 21791 | -4/Armory | Discovered new exit (range 4) 21794 | -4/Armory | Entered Lab 21794 | -4/Lab | Discovered new exit (range 9) 21809 | -4/Lab | Hidden lab's door opened automatically 21809 | -4/Lab | Sensor layout match revealed 21810 | -4/Lab | Gained access to the hidden lab's interior 21845 | -4/Lab | Found Alien Artifact 21852 | -4/Lab | Found Alien Artifact 21859 | -4/Lab | Found Alien Artifact 21860 | -4/Lab | Identified Integrated Mediator 21860 | -4/Lab | Installed Integrated Mediator, increased core attachment efficiency 21905 | -4/Lab | Found Alien Artifact 21905 | -4/Lab | Identified Core Regenerator 21905 | -4/Lab | Used Core Regenerator, restored core integrity (+287) 21917 | -4/Lab | Found Hvy. Regenerative Plating 22031 | -4/Lab | Found Deep Network Scanner 22034 | -4/Lab | Found Potential Cannon 22063 | -4/Lab | Found Warp Cannon 22154 | -4/Lab | Entered Research 22154 | -3/Research | Evolved 2 slots: Utility x2 22155 | -3/Research | Forged Quantum Companion 22254 | -3/Research | Spotted B-86 Titan 22288 | -3/Research | Lost 4 parts (3n1u) 22344 | -3/Research | Destroyed B-86 Titan 22354 | -3/Research | Revision forces began assault on 0b10 22366 | -3/Research | Met up with Revision 17++ 22372 | -3/Research | Lost 6 parts (2p1n3u) 22412 | -3/Research | Identified exit to Quarantine 22549 | -3/Research | Build established: Hacker-Mutant 22693 | -3/Research | Discovered new exit (range 10) 22854 | -3/Research | Research terminal network offline 23062 | -3/Research | Build established: Scavenger-Mutant 23183 | -3/Research | Repaired Flexi-carbon Leg? 23225 | -3/Research | Spotted Striker 23228 | -3/Research | Spotted Striker 23229 | -3/Research | Spotted Striker 23245 | -3/Research | Destroyed Striker 23268 | -3/Research | Lost 8 allies 23286 | -3/Research | Entered Quarantine 23479 | -3/Quarantine | Build established: Hacker-Mutant 23519 | -3/Quarantine | Found Alien Artifact 23523 | -3/Quarantine | Found Alien Artifact 23532 | -3/Quarantine | Found Alien Artifact 23534 | -3/Quarantine | Found Alien Artifact 23534 | -3/Quarantine | Identified Dimensional Node Initializer (x2) 23534 | -3/Quarantine | Initialized slip node 23654 | -3/Quarantine | Identified Core Reset Matrix 23654 | -3/Quarantine | Identified Transdimensional Reconstructor (x3) 23654 | -3/Quarantine | Used Core Reset Matrix 23658 | -3/Quarantine | Detected hypermatrix surge 23658 | -3/Quarantine | Sensed 13 artifacts in vicinity 23757 | -3/Quarantine | Found Core Cannon 23853 | -3/Quarantine | Central database locked down 23871 | -3/Quarantine | Found Subatomic Replicator 23873 | -3/Quarantine | Forged Prototype Slashing Weapon 23893 | -3/Quarantine | Discovered new exit (range 3) 24094 | -3/Quarantine | Found Matter Drive 24242 | -3/Quarantine | Entered Research 24242 | -2/Research | Evolved 2 slots: Power x1, Utility x1 24457 | -2/Research | Identified exit to Testing 24546 | -2/Research | Destroyed 8 combat bots 24719 | -2/Research | Spotted B-90 Cyclops 24722 | -2/Research | Spotted B-90 Cyclops 24784 | -2/Research | Found Exp. Armor Integrity Analyzer 24984 | -2/Research | Destroyed 7 combat bots 25326 | -2/Research | System corruption reached 10% 25356 | -2/Research | Entered Testing 25358 | -2/Testing | Spotted PL-A79JRR8UGW 25411 | -2/Testing | Destroyed PL-A79JRR8UGW 25454 | -2/Testing | Watched by a mysterious "MATRIX" hacker. 25483 | -2/Testing | Fabricated Nanoactuators (x2) 25544 | -2/Testing | Found Fusion Bomb Launcher 25696 | -2/Testing | Found Perforator 25854 | -2/Testing | Found System Mapper 26152 | -2/Testing | Found Hyp. Multirail 26279 | -2/Testing | Found Myomer Exoskeleton 26385 | -2/Testing | Found Exp. Transmission Jammer 26676 | -2/Testing | Spotted Fortress 26683 | -2/Testing | Destroyed Fortress 26702 | -2/Testing | Found Exp. EM Shield 26707 | -2/Testing | Found Vortex Chain Reactor 26779 | -2/Testing | Discovered new exit (range 6) 26779 | -2/Testing | Discovered new exit (range 7) 26787 | -2/Testing | Entered Protoforge 26788 | -2/Protoforge | Sensed 2 artifacts in vicinity 26832 | -2/Protoforge | Spotted Hotshot 26833 | -2/Protoforge | Spotted Hotshot 26839 | -2/Protoforge | Spotted Hotshot 26839 | -2/Protoforge | Spotted Hotshot 26839 | -2/Protoforge | Spotted Hotshot 26845 | -2/Protoforge | Superfortress began startup sequence 26855 | -2/Protoforge | Destroyed Hotshot 26860 | -2/Protoforge | Destroyed Hotshot 26868 | -2/Protoforge | Destroyed Hotshot 26898 | -2/Protoforge | Destroyed Hotshot 26898 | -2/Protoforge | Destroyed Hotshot 27077 | -2/Protoforge | Discovered new exit (range 5) 27113 | -2/Protoforge | Initialized slip node 27227 | -2/Protoforge | Found Exp. System Purifier 27237 | -2/Protoforge | Found Cep. Weapon Articulator 27241 | -2/Protoforge | Found Cep. Weapon Articulator 27256 | -2/Protoforge | Additional patrols dispatched to research labs 27285 | -2/Protoforge | Spotted Immortal 27294 | -2/Protoforge | Found Faulty Cep. Zero-point Core 27350 | -2/Protoforge | Destroyed Immortal 27383 | -2/Protoforge | Spotted Hotshot 27383 | -2/Protoforge | Spotted Hotshot 27409 | -2/Protoforge | Destroyed Hotshot 27434 | -2/Protoforge | Destroyed Hotshot 27453 | -2/Protoforge | Spotted Decapitator 27453 | -2/Protoforge | Spotted Decapitator 27453 | -2/Protoforge | Spotted Decapitator 27455 | -2/Protoforge | Destroyed 7 combat bots 27480 | -2/Protoforge | Found Crosscalibrator 27515 | -2/Protoforge | System Mapper fried by hacking feedback 27571 | -2/Protoforge | Destroyed Decapitator 27573 | -2/Protoforge | Destroyed Decapitator 27577 | -2/Protoforge | Destroyed Decapitator 27634 | -2/Protoforge | Found Exp. Weapon Cycler 27907 | -2/Protoforge | Spotted Immortal 27907 | -2/Protoforge | Spotted Immortal 27926 | -2/Protoforge | Destroyed 9 combat bots 27979 | -2/Protoforge | Destroyed Immortal 27987 | -2/Protoforge | Destroyed Immortal 27990 | -2/Protoforge | Found Corrupted Cep. Antimissile System 28037 | -2/Protoforge | First assault squad dispatched 28083 | -2/Protoforge | Found Faulty Cep. Plasma Driver 28090 | -2/Protoforge | Found Faulty Cep. Plasma Driver 28205 | -2/Protoforge | Spotted Decapitator 28212 | -2/Protoforge | Destroyed 13 combat bots 28287 | -2/Protoforge | Spotted V312-n 28327 | -2/Protoforge | Spotted Decapitator 28327 | -2/Protoforge | Spotted Decapitator 28327 | -2/Protoforge | Spotted Decapitator 28327 | -2/Protoforge | Spotted Decapitator 28334 | -2/Protoforge | Destroyed Decapitator 28336 | -2/Protoforge | Destroyed Decapitator 28338 | -2/Protoforge | Destroyed Decapitator 28341 | -2/Protoforge | Destroyed Decapitator 28359 | -2/Protoforge | Found Cep. NT7 Matterbank 28361 | -2/Protoforge | Found Cep. Chromion Battery 28366 | -2/Protoforge | Found Cep. Antigrav Storage Unit 28370 | -2/Protoforge | Found Cep. Chromion Battery 28426 | -2/Protoforge | Spotted Hotshot 28427 | -2/Protoforge | Spotted Hotshot 28447 | -2/Protoforge | Destroyed Hotshot 28451 | -2/Protoforge | Destroyed Hotshot 28506 | -2/Protoforge | Found Femtoactuators 28508 | -2/Protoforge | Found Cep. Melee Reflex Suite 28510 | -2/Protoforge | Found Cep. Melee Reflex Suite 28523 | -2/Protoforge | Found Cep. Weapon Articulator 28527 | -2/Protoforge | Found Faulty Femtoactuators 28607 | -2/Protoforge | Spotted AP7-3 28612 | -2/Protoforge | Spotted AP7-3 28618 | -2/Protoforge | Destroyed AP7-3 28619 | -2/Protoforge | Destroyed AP7-3 28634 | -2/Protoforge | Found Enh. Gamma Rifle 28665 | -2/Protoforge | Found Faulty Cep. Impact Drone Bay 28667 | -2/Protoforge | Found Cep. Impact Drone Bay 28673 | -2/Protoforge | Found Cep. Cloak Mesh 28679 | -2/Protoforge | Found Cep. Thermoelectric Network 28683 | -2/Protoforge | Found Faulty Cep. Cloak Mesh 28804 | -2/Protoforge | Destroyed 9 combat bots 28853 | -2/Protoforge | Found Cep. Nanofilaments [Tensile] 28853 | -2/Protoforge | Installed Cep. Nanofilaments [Tensile], 3 resistances modified: KI +20%, TH -10%, I +20% 28865 | -2/Protoforge | Found Transdimensional Reconstructor 28946 | -2/Protoforge | Forge Plexus network access discovered 29044 | -2/Protoforge | Spotted Immortal 29045 | -2/Protoforge | Spotted Immortal 29053 | -2/Protoforge | Destroyed Immortal 29059 | -2/Protoforge | Destroyed Immortal 29157 | -2/Protoforge | Found Faulty Cep. Biometal Exoskeleton 29164 | -2/Protoforge | Found Faulty Cep. Biometal Exoskeleton 29241 | -2/Protoforge | Found Cep. Zero-point Core 29259 | -2/Protoforge | Found Faulty Cep. Zero-point Core 29455 | -2/Protoforge | Warped through subspace to slip node 29478 | -2/Protoforge | Spotted Overlord 29478 | -2/Protoforge | Entered Access 29478 | -1/Access | Evolved 2 slots: Utility x2 29645 | -1/Access | Unchained authorized (QV-33N) 29728 | -1/Access | First assault squad dispatched 30525 | -1/Access | Discovered new exit (range 7) 30531 | -1/Access | Entered Command 30753 | -1/Command | Spotted Combat Programmer 30754 | -1/Command | Spotted Combat Programmer 30768 | -1/Command | Spotted M Guard 30774 | -1/Command | Destroyed Combat Programmer 30775 | -1/Command | Spotted M Guard 30787 | -1/Command | Destroyed Combat Programmer 30798 | -1/Command | Destroyed M Guard 30813 | -1/Command | Destroyed M Guard 30813 | -1/Command | All MAIN.C guards destroyed 30833 | -1/Command | Found Zero-point Reactor 30932 | -1/Command | Met MAIN.C 30936 | -1/Command | 0b10 Conduit disabled 30948 | -1/Command | Destroyed MAIN.C Shell 30949 | -1/Command | MAIN.C activated Command garrisons 31004 | -1/Command | Destroyed MAIN.C 31006 | -1/Command | Discovered new exit (range 46) 31006 | -1/Command | Discovered new exit (range 94) 31006 | -1/Command | Extracted map data and part IDs from MAIN.C's data core 31024 | -1/Command | Lost 3 allies 31209 | -1/Command | Build established: Alien-Mutant 31709 | -1/Command | Found Exp. System Purifier 31714 | -1/Command | Found Zero-point Reactor 31716 | -1/Command | Found Zero-point Reactor 32479 | -1/Command | Found Exp. Core Analyzer 32796 | -1/Command | Build established: Scavenger-Mutant 33698 | -1/Command | Build established: Scavenger-Gladiator 34332 | -1/Command | Found Exp. Targeting Computer 35007 | -1/Command | Build established: Scavenger-Mutant 35029 | -1/Command | Found Exp. Core Analyzer 35514 | -1/Command | Warped through subspace to slip node 35514 | -1/Command | Discovered new exit (range 5) 35522 | -1/Command | Entered Access_0 35523 | -1/Access_0 | Sensed 4 artifacts in vicinity 35523 | -1/Access_0 | Met Architect 35532 | -1/Access_0 | Architect warped through subspace 35538 | -1/Access_0 | Destroyed A8 35567 | -1/Access_0 | Architect warped through subspace 35568 | -1/Access_0 | Found Prototype Protection 35568 | -1/Access_0 | Identified Centrium Linked Plating 35602 | -1/Access_0 | Architect warped through subspace 35634 | -1/Access_0 | Architect warped through subspace 35667 | -1/Access_0 | Architect warped through subspace 35724 | -1/Access_0 | Architect warped through subspace 35743 | -1/Access_0 | A6 warped into view 35764 | -1/Access_0 | Destroyed A6 35771 | -1/Access_0 | Architect warped through subspace 35806 | -1/Access_0 | Architect warped through subspace 35859 | -1/Access_0 | Architect warped through subspace 35887 | -1/Access_0 | Subspace Access Node disabled 35913 | -1/Access_0 | Architect warped through subspace 35934 | -1/Access_0 | Found Prototype Device 35934 | -1/Access_0 | Identified Desublimator 35960 | -1/Access_0 | Destroyed A2 35965 | -1/Access_0 | Architect warped through subspace 35968 | -1/Access_0 | Extracted Singularity Gate Test 138-C access codes from A2's data core 36010 | -1/Access_0 | A5 warped into view 36012 | -1/Access_0 | Architect warped through subspace 36041 | -1/Access_0 | Destroyed A5 36063 | -1/Access_0 | Architect warped through subspace 36083 | -1/Access_0 | Found Exp. Weapon Cycler 36129 | -1/Access_0 | Architect warped through subspace 36143 | -1/Access_0 | Started Test 138-B, establishing a local singularity 36143 | -1/Access_0 | Started Test 138-C, cascade imminent 36143 | *** | Destroyed Tau Ceti IV! Last Messages --------------- 36143_ Connecting with Gate Controls... 36143_ Current location identified: Access_0 36143_ Connecting with Gate Controls... >>Gate Test 138-A Running Singularity Gate diagnostics... All systems nominal. >>Gate Test 138-B Preparing Singularity Gate activation... Stable singularity established. >>Gate Test 138-C Initiating Test 138-C... Warning: Experimental formulas incomplete. Potential effects include instability. Repeat command to confirm test. >>Gate Test 138-C Initiating Test 138-C... Applying incomplete calculations.... INSTABILITY DETECTED, CASCADE IMMINENT. [Achievement: Stardust] [Achievement: Renaissance Bot] Map ----- +----------------------------------------------------+ | ????????????????????????????????????????????????? | | ????????????????????????????????????????????????? | | ????????????????????????????????????????????????? | | ????????????????????????????????????????????????? | | ????????????????????????????????????????????????? | | ????????????????????????????????????????????????? | | ????????????????????????????????????????????????? | | ????????????????????????????????????????????????? | | ????????????????????????????????????????????????? | | ????????????????????????????????????????????????? | | ?????????????????????? ????????????????????????? | | ???????????????????? ????????????????????????? | | ??????????????????" """"????????????????????? | | ???????????????"""" """"????????????????????? | | ???????????????" "????????????????????? | | ??????????????"" "????????????????????? | | ??????????????"" ""???????????????????? | | ??????????????#" "#???????????????????? | | ??????????????#" "#???????????????????? | | ??????????????#" "#???????????????????? | | ??????????????#" "#???????????????????? | | ?????????????##" "##???????#??????????? | | ?????????????#"" ""#?????? ##?????????? | | ?????????????#"" ""#????? #?????????? | | ??????????????#" "#????? ?????????? | | ???????????????"""" @A""###### ?????????? | | ???????????????"""" """""# ??????????? | | ???????????????#### ###### ?????????????? | | ????????????????### #### #???????????????? | | ???????????????## #???????????????? | | ???????????????# ##??????????###??? | | ???????????????## ##?????????###"#### | | ????????????????## ##??????#####"" """" | | ?????????????????# ## ;########]!##" | | ?????????????????# ?# ## #;n ]% = | | ?????????????????# ??## ! ]%! | | ?????????????????# ???###### n;;####" | | ?????????????????#?????????## n ; #??#"" """" | | ????????????????????????????# ##n ;# #??###"#### | | ???????????????????????????## ;;;;;###????###??? | | ???????????????????????????#; ;;;##???????????? | | ?????????????????????#???#### ;#####????????? | | ?????????????????????# ##"# %= #????????? | | ?????????????????????# ] #????????? | | ?????????????????????###### [! ### #????????? | | ?????????????????????????#; ;;!% ##?? #????????? | | ????????????????????????# ##;; ##??? #????????? | | ????????????????????????###;! #????#????????? | | ??????????????????????????#*%] #?????????????? | | ?????????????????????????# ! ;; #?????????????? | +----------------------------------------------------+ Best States ------------- Heat Dissipation 128 Coolant Potential 120 Energy Generation 73 Energy Capacity 3100 Matter Stores 1050 Matter Capacity 1050 Sight Range 23 Robot Scan Range 20 Terrain Scan Range 20 Terrain Scan Density 210 Jamming Range 22 Cloak Strength 9 Corruption Block 20 Armor Coverage 1700 Resistance: KI 30 Resistance: EM 75 Resistance: I 20 Utility Shielding 66 Point Defense Rating 480 Weapon Cycling 30 Melee Speed Boost 50 Phase Shifting 15 Evasion (%) 99 Targeting Accuracy 42 Melee Accuracy 16 Core Analysis 12 Armor Integrity Analysis 40 Recoil Reduction 4 Force Boost 40 Offensive Hacking 45 Defensive Hacking 14 Authchip Count 3 Item Schematics ----------------- Nanoactuators | -2/Research | Hacked Robot Schematics ------------------ None Fabricated ------------ Cmb. Linear Gravjet | x2 | -5/Factory | Preloaded Nanoactuators | x2 | -2/Testing | Authchip Repaired ---------- Adv. Powered Armor | 19% | -6/Factory Adv. Powered Armor | 7% | -5/Factory Adv. Powered Armor | 37% | -4/Factory Microactuators | 30% | -4/Factory Flexi-carbon Leg | 62% | -3/Research Studied --------- Imp. Thunder Leg | -3/Quarantine | Hacked Com. HERF Cannon | -2/Research | Hacked Flexi-carbon Leg | -2/Research | Hacked Enh. Nova Cannon | -2/Testing | Hacked Quantum Reactor | -2/Testing | Hacked Thunder Leg | -2/Testing | Hacked Alien Tech Used ----------------- Integrated Mediator Core Regenerator Dimensional Node Initializer Core Reset Matrix Subatomic Replicator Core Cannon Concept Nanofilaments [Tensile] Transdimensional Reconstructor Achievements -------------- Friends Forever Martial Artist Renaissance Bot Stardust Challenges ------------ None Game ------ Seed RemoteAntimissileExpander Manual? 0 Play Time 07:34:30 Cumulative 311.4 hours Start 2026.03.21 @ 07:54:46 End 2026.03.22 @ 14:14:28 Sessions 15 Manual Loads 0 Difficulty Rogue Special Mode None Game No. 124 Rogue 124 Adventurer 0 Explorer 0 Win Type 5 Total 31 Types 10/4/6/2/1/1/1/2/2/2 Lore% 82 Gallery% 77 Achievement% 69 Wizard Run 0 Options --------- Layout 2 ASCII 0 Keyboard 1 Movement Vi Keybinds 0 Fullscreen 2 Font 18/SmallcapsGlow Map View 50x49 Zoom Use 0% Tactical HUD 1 Map Filters NONE Filters NONE Steam X RUN: 21e6c2dd-9dc9-4942-8f72-62be90ffb3b9